Workbook

Sheet รายละเอียดรายรับ
A1: องค์การบริหารส่วนตำบลหัวไทร อำเภอหัวไทร จังหวัดนครศรีธรรมราช
A2: งบบัญชีรายละเอียดรายรับ-รายจ่ายจริง
A3: ตั้งแต่วันที่ 1 ตุลาคม 2556 ถึงวันที่ 30 กันยายน 2557
D4: ประมาณการ | E4: รายรับจริง | F4: + | G4: สูง | H4: หมายเหตุ
F5: - | G5: ต่ำ
A6: รายได้ภาษีอากร
B7: ภาษีจัดเก็บเอง
A8: 1. | B8: หมวดภาษีอากร
B9: 1) | C9: ภาษีโรงเรือนและที่ดิน | D9: 480000 | E9: 560981 | F9: + | G9: =E9-D9 -> 80981
B10: 2) | C10: ภาษีบำรุงท้องที่ | D10: 40000 | E10: =39310.41+7.12 -> 39317.53 | F10: - | G10: 682.47
B11: 3) | C11: ภาษีป้าย | D11: 100000 | E11: 126664 | F11: + | G11: =E11-D11 -> 26664
A12: รวม | D12: =SUM(D9:D11) -> 620000 | E12: =SUM(E9:E11) -> 726962.53 | F12: + | G12: =E12-D12 -> 106962.53
B13: ภาษีที่รัฐจัดสรรให้
B14: 1) | C14: ภาษีมูลค่าเพิ่ม พรบ.ตามแผน | D14: 7900000 | E14: 7883414.99 | F14: - | G14: 16585.01
B15: 2) | C15: ภาษีมูลค่าเพิ่ม 1 ใน 9 | D15: 3200000 | E15: 3915647.2 | F15: + | G15: =E15-D15 -> 715647.2
B16: 3) | C16: ภาษีสุรา | D16: 1400000 | E16: 1035136.2 | F16: - | G16: 364863.8
B17: 4) | C17: ภาษีสรรพสามิต | D17: 3150000 | E17: 2081795.52 | F17: - | G17: 1068204.48
B18: 5) | C18: ภาษีธุรกิจเฉพาะ | D18: 80000 | E18: 114309.89 | F18: + | G18: 34309.89
B19: 6) | C19: ค่าภาคหลวงแร่ | D19: 100000 | E19: 111127.36 | F19: + | G19: 11127.36
B20: 7) | C20: ค่าภาคหลวงปิโตรเลียม | D20: 100000 | E20: 120353.11 | F20: + | G20: 20353.11
B21: 8) | C21: ค่าธรรมเนียมจดทะเบียนสิทธิและนิติกรรมที่ดิน | D21: 2570000 | E21: 2166691 | F21: - | G21: 403309
B22: 9) | C22: ภาษีจัดสรรอื่น ๆ | D22: 2000 | E22: 147508.04 | F22: + | G22: 145508.04
A24: รวม | D24: =SUM(D14:D23) -> 18502000 | E24: =SUM(E14:E23) -> 17575983.31 | F24: - | G24: 926016.69
A25: รายได้ที่มิใช่ภาษีอากร | G25: =D25-E25 -> 0
A26: 2. | B26: หมวดค่าธรรมเนียม ค่าปรับและใบอนุญาต | G26: =D26-E26 -> 0
B27: 1) | C27: ค่าธรรมเนียมเกี่ยวกับการควบคุมอาคาร | E27: 10 | F27: + | G27: 10
B28: 2) | C28: ค่าธรรมเนียมเกี่ยวกับใบอนุญาตการพนัน | D28: 0 | E28: 0 | G28: =E28-D28 -> 0
B29: 3) | C29: ค่าธรรมเนียมเก็บและขนขยะมูลฝอย | D29: 90000 | E29: 97200 | F29: + | G29: =E29-D29 -> 7200
B30: 4) | C30: ค่าปรับผู้กระทำผิดกฎจราจร | D30: 5000 | E30: 5700 | F30: + | G30: =E30-D30 -> 700
B31: 5) ค่าใบอนุญาตเกี่ยวกับการควบคุมอาคาร | C31: ค่าปรับการผิดสัญญา | D31: 0 | E31: 48343 | F31: + | G31: =E31-D31 -> 48343
A32: ยอดยกไป | D32: =SUM(D27:D31) -> 95000 | E32: =SUM(E27:E31) -> 151253 | F32: + | G32: =E32-D32 -> 56253
A34: (นางข้อหนัน เจะดุหมัน) (นายเสน่ห์ อ่อนเกตุพล) | E34: (นายสมบูรณ์ ขลุกเอียด)
A35: ผู้อำนวยการกองคลัง ปลัดองค์การบริหารส่วนตำบล | E35: นายกองค์การบริหารส่วนตำบลหัวไทร
A37: -2-
D38: ประมาณการ | E38: รายรับจริง | F38: - | G38: ต่ำ | H38: หมายเหตุ
F39: + | G39: สูง
C40: ยอดยกมา | D40: =D32 -> 95000 | E40: =E32 -> 151253 | F40: + | G40: =E40-D40 -> 56253
B41: 6) | C41: ค่าธรรมเนียมอื่น ๆ | D41: 0 | E41: 240 | F41: + | G41: 500
B42: 7) | C42: ค่าธรรมเนียมจดทะเบียนพาณิชย์ | D42: 2000 | E42: 1870 | F42: - | G42: 110
B43: 8) | C43: ค่าใบอนุญาตจัดตั้งสถานที่จำหน่ายอาหารหรือ | D43: 0 | E43: 2300 | F43: + | G43: 500
C44: สถานที่สะสมอาหารฯ
B45: 9) | C45: ค่าใบอนุญาตให้ตั้งตลาดเอกชน | D45: 4500 | E45: 3600 | F45: - | G45: =D45-E45 -> 900
B46: 10) | C46: ค่าใบอนุญาตเกี่ยวกับการควบคุมอาคาร | E46: 194240 | F46: + | G46: 194240
B47: 11) | C47: ค่าใบอนุญาตประกอบการค้าสำหรับกิจการ
C48: ที่เป็นอันตรายต่อสุขภาพ
B49: 12) | C49: ค่าใบอนุญาตอื่น ๆ | D49: 500 | E49: 18550 | F49: + | G49: 18050
A51: รวม | D51: =SUM(D40:D50) -> 102000 | E51: =SUM(E37:E50) -> 372053 | F51: + | G51: =E51-D51 -> 270053
A52: 3. | B52: รายได้จากทรัพย์สิน | G52: =D52-E52 -> 0
B53: 1) | C53: ดอกเบี้ยเงินฝากธนาคาร | D53: 200000 | E53: 174245.72 | F53: - | G53: 25754.28
A54: รวม | D54: =SUM(D53) -> 200000 | E54: =SUM(E53) -> 174245.72 | F54: - | G54: 25754.28
B55: หมวดรายได้จากทรัพย์สิน
B56: 1) | C56: รายได้จากการจำหน่ายน้ำ | D56: 126000 | E56: 175316 | F56: + | G56: 142144
A57: รวม | D57: =SUM(D56) -> 126000 | E57: =SUM(E56) -> 175316 | F57: + | G57: =E57-D57 -> 49316
A58: 4 | B58: หมวดรายได้เบ็ดเตล็ด
B59: 1) | C59: ค่าขายแบบแปลน | D59: 48000 | E59: 283000 | F59: + | G59: =E59-D59 -> 235000
B60: 2) | C60: ค่ารับรองสำเนาและถ่ายเอกสาร | E60: 36 | F60: - | G60: 1000
B61: 3) | C61: รายได้เบ็ดเตล็ดอื่น ๆ | D61: 2000 | E61: 296 | F61: - | G61: 1704
B62: 4) | C62: ค่าจำหน่ายเศษของ | E62: 310 | F62: + | G62: =E62-D62 -> 310
C63: รวม | D63: =SUM(D59:D62) -> 50000 | E63: =SUM(E59:E62) -> 283642 | F63: + | G63: =E63-D63 -> 233642
B64: หมวดเงินอุดหนุน
B65: 1) | C65: เงินอุดหนุนทั่วไป (อบต.) | D65: 8400000 | E65: 9248746 | F65: + | G65: 283333.77
C66: รวม | D66: =SUM(D65) -> 8400000 | E66: =SUM(E65) -> 9248746 | F66: + | G66: 283333.77
A67: 5 | B67: หมวดเงินอุดหนุน
B68: 1) | C68: เงินอุดหนุนทั่วไปที่ระบุวัตถุประสงค์/เฉพาะกิจ | E68: 12364554
A69: รวม | E69: =SUM(E68:E68) -> 12364554
A70: รวมรายรับตามงบประมาณ | D70: =D12+D24+D51+D54+D57+D63+D66 -> 28000000 | E70: =E12+E24+E51+E54+E57+E63+E66 -> 28556948.56 | F70: + | G70: 556948.56
A71: รวเงินรายรับทั้งสิ้น | E71: =SUM(E69:E70) -> 40921502.56
A73: (นางข้อหนัน เจะดุหมัน) (นายเสน่ห์ อ่อนเกตุพล) | E73: (นายสมบูรณ์ ขลุกเอียด)
A74: ผู้อำนวยการกองคลัง ปลัดองค์การบริหารส่วนตำบล | E74: นายกองค์การบริหารส่วนตำบลหัวไทร
A75: -3-
D76: ประมาณการ | E76: รายจ่ายจริง | F76: + | G76: สูง | H76: รายจ่ายจากเงิน
F77: - | G77: ต่ำ | H77: อุดหนุนระบุวัตถุ
H78: ประสงค์/เฉพาะกิจ
B79: รายจ่ายตามประมาณการ
C80: งบกลาง | D80: 1842960 | E80: 1671243.28 | F80: - | G80: =D80-E80 -> 171716.72 | H80: 11505560 | I80: =1639154.48-1639153.94 -> 0.54
C81: เงินเดือน(ฝ่ายการเมือง) | D81: 2917800 | E81: 2916720 | F81: - | G81: =D81-E81 -> 1080
C82: เงินเดือน(ฝ่ายประจำ) | D82: 3294274 | E82: 3261044 | F82: - | G82: 33230 | H82: 360000
C83: ค่าจ้างประจำ | D83: 148000 | E83: 145800 | F83: - | G83: 2200 | H83: 147690
C84: ค่าจ้างชั่วคราว | D84: 597000 | E84: 546080 | F84: - | G84: 50920 | H84: 216000
C85: ค่าตอบแทน | D85: 585579 | E85: 340771 | F85: - | G85: 244808 | H85: 2604
C86: ค่าใช้สอย | D86: 3770041 | E86: 3139693.65 | F86: - | G86: 630347.35 | H86: 37500
C87: ค่าวัสดุ | D87: 2053110 | E87: 1833372.6 | F87: - | G87: 219737.4 | H87: 95200
C88: ค่าสาธารณูปโภค | D88: 417000 | E88: 382168.17 | F88: - | G88: 34831.83
C89: เงินอุดหนุน | D89: 1799680 | E89: 1799680 | F89: - | G89: 0
C90: รายจ่ายอื่น | D90: 2329656 | E90: 2329656 | F90: - | G90: 0
C91: ค่าครุภัณฑ์ | D91: 369000 | E91: 319740 | F91: - | G91: 49260
C92: ค่าที่ดินและสิ่งก่อสร้าง | D92: 7875900 | E92: =4440500+2073000 -> 6513500 | F92: - | G92: 1362400
A93: รวมรายจ่ายตามประมาณการรายจ่ายทั้งสิ้น | D93: =SUM(D80:D92) -> 28000000 | E93: =SUM(E80:E92) -> 25199468.7 | F93: - | G93: =SUM(G80:G92) -> 2800531.3 | H93: =SUM(H80:H92) -> 12364554
C94: เงินอุดหนุนทั่วไปที่ระบุวัตถุประสงค์/เฉพาะกิจ | E94: 12364554
A95: รวมรายจ่ายตามประมาณการราย/เงินอุดหนุนเฉพาะกิจ | E95: =E93+E94 -> 37564022.7
A100: (นางข้อหนัน เจะดุหมัน) | D100: (นายเสน่ห์ อ่อนเกตุพล) | F100: (นายสมบูรณ์ ขลุกเอียด)
A101: ผู้อำนวยการกองคลัง | D101: ปลัดองค์การบริหารส่วนตำบล | F101: นายกองค์การบริหารส่วนตำบลหัวไทร
E157: นายกองค์การบริหารส่วนตำบลหัวไทร
A163: -5-
A164: เงินอุดหนุนเฉพาะกิจ(บันทึกจ่ายเงินอุดหนุนเฉพาะกิจ)
A165: 1) | B165: ค่าขยายระบบไฟฟ้าระบบประปา ม.6 บ้านโคกหลวง | E165: 220000
A166: 2) | B166: ค่าจ้างประจำ-สถานีสูบน้ำด้วยไฟฟ้า8 | E166: 203150
B167: เงินเพิ่ม-การครองชีพ-สถานีสูบน้ำด้วยไฟฟ้า | E167: 33000
B168: เงินสมทบ กสจ. 3% | E168: 3077.7
B169: เงินช่วยเหลือค่ารักษาพยาบาล | E169: 6947
B170: ค่ากระแสไฟฟ้าสถานีสูบน้ำ(ประชาชน) | E170: =97050.43 -> 97050.43
A171: 3) | B171: ค่าจ้างชั่วคราว/เงินค่าครองชีพ/ศูนย์เด็กเล็กวัดทะเลปัง | E171: 196800
B172: ประกันสังคม | E172: =9184-492 -> 8692
A173: 4) | B173: เงินพัฒนาสนับสนุนครอบครัวและเยาวชน | E173: =10000 -> 10000 | G173: -
A174: 5) | B174: ค่าครุภัณฑ์ศูนย์เด็ก หัวลำภู ทะเลปัง | E174: 50000
B175: ค่าวัสดุศูนย์เด็ก หัวลำภู ทะเลปัง | E175: 13200
B176: เงินทุนการศึกษาศูนย์เด็ก หัวลำภู ทะเลปัง | E176: 20000
E177: =SUM(E165:E176) -> 861917.13
C178: เงินสะสม | H178: จ่ายปี2553
A179: 1) | B179: ค่าซ่อมบ้านให้ราษฎร | D179: 25842 | E179: 25842
A180: 2) | B180: รถบรรทุกดีเซล ขนาด 6 ล้อ 6 ตัน | D180: 1600000 | G180: =D180-E180 -> 1600000 | H180: =D180-E180 -> 1600000
A181: 3) | B181: ห้องน้ำ ข้างอาคารพัสดุ | D181: 252400 | G181: =D181-E181 -> 252400 | H181: =D181-E181 -> 252400
A182: 4) | B182: สระน้ำ เก็บน้ำที่ทำการอบต. | D182: 195900 | E182: 157000 | G182: =D182-E182 -> 38900
A183: 5) | B183: ระบบประปา อบต. | D183: 442900 | G183: =D183-E183 -> 442900 | H183: =D183-E183 -> 442900
A184: 6) | B184: ค่าปรับปรุงถนนสายซอยแพรกเมือง 1 หมู่ที่ 2 | D184: 34900
A185: 7) | B185: ค่าปรับปรุงถนนสายซอยแพรกเมือง 2 หมู่ที่ 2 | D185: 21400
A186: 8) | B186: ค่าปรับปรุงถนนสายซอยประชารวมใจ 1 หมู่ที่ 2 | D186: 55100
A187: 9) | B187: ค่าปรับปรุงถนนสายซอยประชารวมใจ 2 หมู่ที่ 2 | D187: 61700
A188: 10) | B188: ค่าปรับปรุงถนนสายซอยทะเลปัง 1 หมู่ที่ 2 | D188: 83000
A189: 11) | B189: ค่าปรับปรุงถนนสายซอยทะเลปัง 2 หมู่ที่ 2 | D189: 41600
A190: 12) | B190: ค่าปรับปรุงถนนสายซอยทะเลปัง 4 หมู่ที่ 2 | D190: 26700
C191: รวม 7 สาย | D191: =SUM(D184:D190) -> 324400 | E191: 301900 | G191: =D191-E191 -> 22500
A192: 13) | B192: ขยายท่อเมนจ่ายน้ำประปา ม.6 | D192: 192500 | E192: 176000 | G192: =D192-E192 -> 16500
A193: 14) | B193: ค่าก่อสร้างประตูระบายน้ำโรงสูบน้ำและติดตั้งเครื่องม.3 | D193: 582300 | E193: 580000 | G193: 2300
A194: 15) | B194: ค่าขยายเขตระบบจ่ายไฟฟ้าแรงสูง 3 เฟส หมู่ที่ 3 | D194: 437043.65 | E194: =185822.62+237057.62 -> 422880.24 | G194: 14163.41
A195: 16) | B195: ค่าติดตั้งหม้อแปลง | D195: 95000 | E195: 95000 | G195: 0 | H195: =D195-E195 -> 0
A196: 17) | B196: ค่าที่ดิน | D196: 1250000 | G196: 1250000 | H196: =D196-E196 -> 1250000
G197: 0 | H197: =D197-E197 -> 0
A198: รวมจ่ายขาดเงินสะสม | D198: =D179+D180+D181+D182+D183+D184+D191+D192+D193+D194+D195+D196 -> 5433185.65 | E198: =SUM(E179:E197) -> 1758622.24 | G198: 3674563.41 | H198: =SUM(H179:H197) -> 3545300

Sheet งบรับจ่าย-ตามงบ
A1: องค์การบริหารส่วนตำบลหัวไทร อำเภอหัวไทร จังหวัดนครศรีธรรมราช
A2: งบรายรับ-รายจ่ายตามงบประมาณ
A3: ตั้งแต่วันที่ 1 ตุลาคม 2556 ถึงวันที่ 30 กันยายน 2557
D4: ประมาณการ | E4: รายรับจริง | F4: + | G4: สูง | H4: หมายเหตุ
F5: - | G5: ต่ำ
B6: รายรับตามประมาณการ
B7: รายรับ
C8: ภาษีอากร | D8: 620000 | E8: =726955.41+7.12 -> 726962.53 | F8: + | G8: =E8-D8 -> 106962.53
C9: ค่าธรรมเนียมค่าปรับและใบอนุญาต | D9: 102000 | E9: 372053 | F9: + | G9: =E9-D9 -> 270053
C10: รายได้จากทรัพย์สิน | D10: 200000 | E10: 174245.72 | F10: - | G10: 25754.28
C11: รายได้จากสาธารณูปโภคและการพาณิชย์ | D11: 126000 | E11: 175316 | F11: + | G11: 49316
C12: รายได้เบ็ดเตล็ด | D12: 50000 | E12: 283642 | F12: + | G12: =E12-D12 -> 233642
C13: รายได้ที่รัฐบาลจัดสรรให้ | D13: 18502000 | E13: 17575983.31 | F13: - | G13: 9926016.69
C14: เงินอุดหนุนทั่วไป | D14: 8400000 | E14: 9248746 | F14: + | G14: 8487476
A15: รวมเงินตามประมาณการราย | D15: =SUM(D8:D14) -> 28000000 | E15: =SUM(E8:E14) -> 28556948.56 | F15: + | G15: =E15-D15 -> 556948.56
C16: รายรับ(นอกงบประมาณ) | E16: 12364554
A17: รวมรายรับทั้งสิ้น | E17: =SUM(E15:E16) -> 40921502.56
D19: ประมาณการ | E19: รายจ่ายจริง | F19: + | G19: สูง | H19: รายจ่ายจากเงิน
F20: - | G20: ต่ำ | H20: อุดหนุนระบุวัตถุ
H21: ประสงค์/เฉพาะกิจ
B22: รายจ่ายตามประมาณการ
C23: งบกลาง | D23: 1842960 | E23: 1671243.28 | F23: - | G23: =D23-E23 -> 171716.72 | H23: 11505560
C24: เงินเดือน(ฝ่ายการเมือง) | D24: 2917800 | E24: 2916720 | F24: - | G24: =D24-E24 -> 1080
C25: เงินเดือน(ฝ่ายประจำ) | D25: 3294274 | E25: 3261044 | F25: - | G25: 33230 | H25: 360000
C26: ค่าจ้างประจำ | D26: 148000 | E26: 145800 | F26: - | G26: 2200 | H26: 147690
C27: ค่าจ้างชั่วคราว | D27: 597000 | E27: 546080 | F27: - | G27: 50920 | H27: 216000
C28: ค่าตอบแทน | D28: 585579 | E28: 340771 | F28: - | G28: 244808 | H28: 2604
C29: ค่าใช้สอย | D29: 3770041 | E29: 3139693.65 | F29: - | G29: 630347.35 | H29: 37500
C30: ค่าวัสดุ | D30: 2053110 | E30: 1833372.6 | F30: - | G30: 219737.4 | H30: 95200
C31: ค่าสาธารณูปโภค | D31: 417000 | E31: 382168.17 | F31: - | G31: 34831.83
C32: เงินอุดหนุน | D32: 1799680 | E32: 1799680 | F32: - | G32: 0
C33: รายจ่ายอื่น | D33: 2329656 | E33: 2329656 | F33: - | G33: 0
C34: ค่าครุภัณฑ์ | D34: 369000 | E34: 319740 | F34: - | G34: 49260
C35: ค่าที่ดินและสิ่งก่อสร้าง | D35: 7875900 | E35: =4440500+2073000 -> 6513500 | F35: - | G35: 1362400
A36: รวมรายจ่ายตามประมาณการรายจ่ายทั้งสิ้น | D36: =SUM(D23:D35) -> 28000000 | E36: =SUM(E23:E35) -> 25199468.7 | F36: - | G36: =SUM(G23:G35) -> 2800531.3 | H36: =SUM(H23:H35) -> 12364554
C37: รายจ่าย(ระบุวัตถุประสงค์/เฉพาะกิจ) | E37: 12364554
A38: รวมรายจ่ายทั้งสิ้น | E38: =SUM(E36:E37) -> 37564022.7
C39: สูงกว่า | E39: =E17-E38 -> 3357479.86
C40: รายรับ รายจ่าย
C41: ต่ำกว่า
B43: (นางข้อหนัน เจะดุหมัน) | D43: (นายเสน่ห์ อ่อนเกตุพล) | F43: (นายสมบูรณ์ ขลุกเอียด)
B44: ผู้อำนวยการกองคลัง | D44: ปลัดองค์การบริหารส่วนตำบล | F44: นายกองค์การบริหารส่วนตำบลหัวไทร

Sheet งบแสดงฐานะการเงิน
A1: องค์การบริหารส่วนตำบลหัวไทร อำเภอหัวไทร จังหวัดนครศรีธรรมราช
A2: งบแสดงฐานะการเงิน
A3: เพียง ณ วันที่ 30 กันยายน 2557
B5: ทรัพย์สิน | D5: บาท
A6: ทรัพย์สินตามงบทรัพย์สิน | B6: (หมายเหตุ 1) | D6: 38731960.37
A7: เงินสด เงินฝากธนาคาร | B7: (หมายเหตุ 2) | D7: 35566026.73
A8: เงินฝากจังหวัด
A9: เงินฝาก กสอ.
A10: ลูกหนี้- ภาษีโรงเรือน | B10: 12480
A11: ลูกหนี้-ภาษีบำรุงท้องที่ | B11: 55555.12
A12: ลูกหนี้-ภาษีป้าย | B12: 400
A13: เงินยืม-เงินงบประมาณ | D13: =+B8+B10+B11+B12+B13 -> 68435.12
B14: รวม | D14: =SUM(D7:D13) -> 35634461.85
B16: หนี้สินและเงินสะสม
A17: ทุนทรัพย์สิน | B17: (หมายเหตุ 1) | D17: 38731960.37
A18: เงินรับฝากต่าง ๆ | B18: (หมายเหตุ 4) | D18: 484236.46
A19: รายจ่ายค้างจ่าย | B19: (หมายเหตุ 5) | D19: =3522926.33-1303946 -> 2218980.33
A20: รายจ่ายรอจ่าย | D20: 1303946
A21: เงินทุนโครงการเศรษฐกิจชุมชน | D21: 2131587.5
A22: รายจ่ายผัดส่งใบสำคัญ
A23: เงินทุนสำรองเงินสะสม | D23: 13060276.36
A24: เงินสะสม | B24: (หมายเหตุ8) | D24: 16435435.2
B25: รวม | D25: =SUM(D18:D24) -> 35634461.85
A30: (นางข้อหนัน เจะดุหมัน) | B30: (นายเสน่ห์ อ่อนเกตุพล) | C30: (นายสมบูรณ์ ขลุกเอียด)
A31: ผู้อำนวยการกองคลัง | B31: ปลัดองค์การบริหารส่วนตำบล | C31: นายกองค์การบริหารส่วนตำบลหัวไทร

Sheet หมายเหตุ 1
H1: หมายเหตุ 1 | J1: . | Q1: หมายเหตุ 1
A2: องค์การบริหารส่วนตำบลหัวไทร อำเภอหัวไทร จังหวัดนครศรีธรรมราช
A3: งบทรัพย์สิน
A4: ณ วันที่ 30 กันยายน 2557
A5: ประเภททรัพย์สิน | C5: ยกมา | D5: รับเพิ่มงวดนี้ | E5: จำหน่ายงวดนี้ | F5: ยกไปงวดหน้า | G5: ทรัพย์สินเกิดจาก | H5: จำนวน
C6: จากงวดก่อน
A7: ก. | B7: อสังหาริมทรัพย์ | G7: รายได้ของ อบต. | H7: =9368206.37+52000-105025-91806+103600-94000+3580+5390+48000+14659+2008590-135490+1998740-171100 -> 13005344.37
A8: 1 | B8: ที่ดิน | C8: 2749049 | F8: =C8+D8 -> 2749049 | G8: เงินสะสม | H8: =7797316+3452900+2545000+2661000 -> 16456216
A9: 2 | B9: อาคาร | C9: 9750066 | D9: 276000 | F9: 10026066 | G9: ได้รับบริจาค | H9: =4045+21500-845 -> 24700
A10: 3 | B10: ค่าถมดิน | C10: 1628500 | F10: 1628500 | G10: กรมการปกครอง | H10: =6308900+1197000+408500+975300 -> 8889700
A11: 4 | B11: ลานเอนกประสงค์ | C11: 66500 | F11: 66500 | G11: เงินอุดหนุนจาก อบจ. | H11: 356000
A12: 5 | B12: เสาธง | C12: 193000 | F12: 193000
A13: 6 | B13: รั้ว | C13: 609500 | F13: 609500
A14: 7 | B14: สถานที่จอดรถ | C14: 191000 | F14: 191000
A15: 8 | B15: ค่าติดตั้งระบบไฟฟ้าที่ก่อสร้างอบต. | C15: 246467 | F15: 246467
A16: 9 | B16: อ่างล้างมือที่แปรงฟันนักเรียน | C16: 137900 | F16: 137900
A17: 10 | B17: เตาเผาขยะ | C17: 69200 | F17: 69200
A18: 11 | B18: ขยายท่อเมนประปา/ก่อสร้างหอถังประปา | C18: 2400400 | F18: 2400400
A19: 12 | B19: ระบบประปาหมู่บ้าน/เจาะบ่อบาดาล | C19: 6494000 | F19: 6494000
A20: 13 | B20: หอถังประปา | C20: 379500 | D20: 474500 | F20: 854000
A21: 14 | B21: ก่อสร้างประตูระบายน้ำ ม.6 | C21: 580000 | F21: 580000
A22: 15 | B22: ขุดสระน้ำประปาที่อบต. ระบบประปา | C22: 579000 | F22: 579000
A23: 16 | B23: ก่อสร้างลานกีฬาเอนกประสงค์ | C23: 1537000 | D23: 568000 | F23: 2105000
A24: 17 | B24: ซ่อมแซมประตูระบายน้ำ หมู่ที่ 3 | C24: 408500 | F24: 408500
A25: 18 | B25: ก่อสร้างซุ้มประชาสัมพันธ์อบต.หัวไทร | C25: 243000 | F25: =C25+D25 -> 243000
A26: 19 | B26: ก่อสร้างท่อลอดเหลี่ยม คสล. | D26: 360500 | F26: 360500
H29: หมายเหตุ 1
A30: ประเภททรัพย์สิน | C30: ยกมา | D30: รับเพิ่มงวดนี้ | E30: จำหน่ายงวดนี้ | F30: ยกไปงวดหน้า | G30: ทรัพย์สินเกิดจาก | H30: จำนวน
C31: จากงวดก่อน
A32: ข. | B32: สังหาริมทรัพย์
A33: 1 | B33: ครุภัณฑ์สำนักงาน | C33: 1137632.37 | D33: 112000 | E33: 4100 | F33: =C33+D33-E33 -> 1245532.37
A34: 2 | B34: ครุภัณฑ์ไฟฟ้าและวิทยุ | C34: 221480 | D34: 79000 | F34: 300480
A35: 3 | B35: ครุภัณฑ์ยานพาหนะและขนส่ง | C35: 4815280 | D35: =46610+6000 -> 52610 | F35: 4867890
A36: 4 | B36: ครุภัณฑ์การเกษตร | C36: 222500 | F36: 222500
A37: 5 | B37: ครุภัณฑ์การศึกษา | C37: 975300 | F37: 975300
A38: 6 | B38: ครุภัณฑ์คอมพิวเตอร์ | C38: 871640 | D38: 27240 | E38: 26000 | F38: 872880
A39: 7 | B39: ครุภัณฑ์สำรวจ | C39: 44000 | D39: 34500 | E39: 9000 | F39: =C39+D39-E39 -> 69500
A40: 8 | B40: ครุภัณฑ์ก่อสร้าง | C40: 33000 | F40: =C40+D40 -> 33000
A41: 9 | B41: ครุภัณฑ์โฆษณาและเผยแพร่ | C41: 182880 | D41: 14390 | E41: 112800 | F41: =C41+D41-E41 -> 84470
A42: 10 | B42: ครุภัณฑ์อื่น | C42: 86400 | E42: 19200 | F42: =C42+D42-E42 -> 67200
A43: 11 | B43: ครุภัณฑ์งานบ้านงานครัว | C43: 51626 | F43: =C43+D43-E43 -> 51626
C44: =SUM(C8:C43) -> 36904320.37 | D44: =SUM(D8:D43) -> 1998740 | E44: =SUM(E33:E43) -> 171100 | F44: =C44+D44-E44 -> 38731960.37 | H44: =SUM(H7:H11)-H12 -> 38731960.37
A50: (นางข้อหนัน เจะดุหมัน) | C50: (นายเสน่ห์ อ่อนเกตุพล) | F50: (นายสมบูรณ์ ขลุกเอียด)
A51: ผู้อำนวยการกองคลัง | C51: ปลัดองค์การบริหารส่วนตำบล | F51: นายกองค์การบริหารส่วนตำบลหัวไทร
J99: =G99+H99-I99 -> 0

Sheet หมายเหตุ2
A2: องค์การบริหารส่วนตำบลหัวไทร อำเภอหัวไทร จังหวัดนครศรีธรรมราช
A3: หมายเหตุ ประกอบงบแสดงฐานะการเงิน
A4: 30 กันยายน 2557
A6: เงินสด เงินฝากธนาคาร (หมายเหตุ 2)
B9: เงินสด
B10: เงินฝากธนาคาร
C11: กรุงไทย | D11: ประเภท กระแสรายวัน 082-6-01908-3 | F11: 0
D12: ประเภท ออมทรัพย์ 6026019083022 | F12: 0
C13: ธ.ก.ส | D13: ประเภท กระแสรายวัน 715-5-00040-9 | F13: 0
C14: ธ.ก.ส | D14: ประเภท ออมทรัพย์ | E14: 01 715271562 7 | F14: 18739498.46
D15: ประเภท ออมทรัพย์ | E15: 01 7152456719 5 | F15: 2131587.5
C16: ออมสิน | D16: ประเภท กระแสรายวัน 3311001694 | F16: 0
D17: ประเภท ออมทรัพย์ | E17: 05331067844 5 | F17: 14694940.77
F19: =SUM(F11:F18) -> 35566026.73
A25: (นางข้อหนัน เจะดุหมัน) | C25: (นายเสน่ห์ อ่อนเกตุพล) | E25: (นายสมบูรณ์ ขลุกเอียด)
A26: ผู้อำนวยการกองคลัง | C26: ปลัดองค์การบริหารส่วนตำบล | E26: นายกองค์การบริหารส่วนตำบลหัวไทร

Sheet หมายเหตุ 4,6
F1: (หมายเหตุ 4)
A2: หมายเหตุ ประกอบงบแสดงฐานะการเงิน
A3: องค์การบริหารส่วนตำบลหัวไทร อำเภอหัวไทร จังหวัดนครศรีธรรมราช
B4: เงินรับฝาก | C4: (หมายเหตุ 4)
C5: ภาษีหัก ณ ที่จ่าย | E5: 9940.06
C6: ค่าใช้จ่ายภาษีบำรุงท้องที่ 5% | E6: 276.72
C7: ค่าส่วนลดภาษีบำรุงท้องที่ 6% | E7: 536.66
C8: เงินมัดจำประกันสัญญา | E8: 468144
C9: เงินค่ากระแสไฟฟ้าจากเกษตรกร | E9: 5339.02
C12: รวม | E12: =SUM(E5:E11) -> 484236.46
B14: รายจ่ายผัดส่งใบสำคัญ (หมายเหตุ 6 )
C15: ลูกหนี้-เงินยืมเงินงบประมาณ
C18: รวม | E18: =SUM(E15:E17) -> 0
A23: (นางข้อหนัน เจะดุหมัน) | C23: (นายเสน่ห์ อ่อนเกตุพล) | E23: (นายสมบูรณ์ ขลุกเอียด)
A24: ผู้อำนวยการกองคลัง | C24: ปลัดองค์การบริหารส่วนตำบล | E24: นายกองค์การบริหารส่วนตำบลหัวไทร

Sheet หมายเหตุ5.1
F1: หมายเหตุ 5/1
A2: องค์การบริหารส่วนตำบลหัวไทร อำเภอหัวไทร จังหวัดนครศรีธรรมราช
A3: รายจ่ายค้างจ่าย
A4: ปีงบประมาณ 2557
A6: หมวด/ประเภท | B6: จำนวนเงิน | D6: เบิกจ่ายแล้ว | E6: คงเหลือ | F6: หมายเหตุ
B7: ก่อหนี้ผูกพัน | C7: ไม่ก่อหนี้ผูกพัน
A8: ค่าใช้สอย
A9: ค่าจ้างเหมายามรักษาความปลอดภัย | B9: 72000 | D9: =B9-E9 -> 66000 | E9: 6000
A10: ค่าจ้างเหมาคนงานทั่วไป | B10: 72000 | D10: =B10-E10 -> 66000 | E10: 6000
A11: ค่าจ้างเหมาคนงานทั่วไป | B11: 72000 | D11: 66000 | E11: 6000
A12: ค่าจ้างเหมาคนงานคนงานขับรถขยะมูลฝอย | B12: 71357 | D12: 62357 | E12: 9000
A13: ค่าจ้างเหมาคนงานทั่วไปประจำรถบรรทุกขยะ | B13: 72000 | D13: 66000 | E13: 6000
A14: ค่าจ้างเหมาคนงานทั่วไปประจำรถบรรทุกขยะ | B14: 72000 | D14: 66000 | E14: 6000
A15: ค่าจ้างเหมาคนงานทั่วไปประจำรถบรรทุกขยะ | B15: 47571 | D15: 41571 | E15: 6000
A16: ค่าจ้างเหมาผู้ช่วยแผนที่ภาษีและทะเบียนทรัพย์สิน | B16: 85200 | D16: 78100 | E16: 7100
A17: ค่าจ้างเหมาคนงานไฟฟ้า | B17: 85200 | D17: 78100 | E17: 7100
A18: ค่าจ้างเหมาขยายเขตไฟฟ้าสาธารณะสนามกีฬาหัวไทรม.1 | B18: =9220.38+9220.39 -> 18440.77 | D18: 9220.38 | E18: 9220.39
A19: ค่าจ้างเหมาขยายเขตไฟฟ้าสาธารณะบ้านศาลาแก้ว ม.3 | B19: =77559.94+77559.94 -> 155119.88 | D19: 77559.94 | E19: 77559.94
A20: ค่าที่ดินและสิ่งก่อสร้าง
A21: โครงการขุดเจาะบ่อบาดาล หมู่ที่11 | B21: 423000 | E21: 423000
A22: โครงการก่อสร้างอาคารจอดรถและอาคารสำนักงานอปพร. | C22: 1650000 | E22: 1650000
A25: รวม | B25: =SUM(B9:B24) -> 1245888.65 | C25: =SUM(C9:C24) -> 1650000 | D25: =SUM(D9:D24) -> 676908.32 | E25: =SUM(E9:E24) -> 2218980.33
A28: (นางข้อหนัน เจะดุหมัน) | B28: (นายเสน่ห์ อ่อนเกตุพล) | D28: (นายสมบูรณ์ ขลุกเอียด)
A29: ผู้อำนวยการกองคลัง | B29: ปลัดองค์การบริหารส่วนตำบล | D29: นายกองค์การบริหารส่วนตำบลหัวไทร

Sheet หมายเหตุ 5.2
J2: หมายเหตุ 5/2
A3: องค์การบริหารส่วนตำบลหัวไทร อำเภอหัวไทร จังหวัดนครศรีธรรมราช
A4: รายจ่ายค้างจ่าย
A5: ปีงบประมาณ 2557
A6: รายงานรายจ่ายค้างจ่ายการกันเงินอุดหนุนระบุวัตถุประสงค์ รายการกันเงินไม่ก่อหนี้
A8: งาน | B8: หมวด | C8: ประเภทรายจ่าย | D8: โครงการ | E8: ปีงบประมาณ | F8: จ่ายจริง | G8: รับจริง | H8: กันเงิน | I8: คงเหลือ | J8: หมายเหตุ
E9: ที่กันเงิน
A21: รวมทั้งหมด | F21: =SUM(F18:F20) -> 0 | G21: =SUM(G18:G20) -> 0 | H21: =SUM(H18:H20) -> 0 | I21: 0 | J21: =SUM(J18:J20) -> 0
A24: (นางข้อหนัน เจะดุหมัน) | D24: (นายเสน่ห์ อ่อนเกตุพล) | H24: (นายสมบูรณ์ ขลุกเอียด)
A25: ผู้อำนวยการกองคลัง | D25: ปลัดองค์การบริหารส่วนตำบล | H25: นายกองค์การบริหารส่วนตำบลหัวไทร

Sheet หมายเหตุ 7
F1: หมายเหตุ 7
A2: องค์การบริหารส่วนตำบลหัวไทร อำเภอหัวไทร จังหวัดนครศรีธรรมราช
A3: เงินอุดหนุนเฉพาะกิจค้างจ่าย
A4: (เงินอุดหนุนเฉพาะกิจที่ได้ก่อหนี้ผูกันและยังไม่ได้เบิกจ่ายและเบิกจ่ายไม่ทัน)
A5: ปีงบประมาณ 2557
A7: ลำดับ | B7: หมวด/ประเภท | C7: จำนวนเงินตาม | D7: ก่อหนี้ผูกพัน | E7: เบิกจ่ายแล้ว | F7: คงเหลือ
C8: ใบอนุมัติประจำงวด | D8: จำนวนเงิน | E8: จำนวนเงิน | F8: จำนวนเงิน
A11: 1
B22: (นางข้อหนัน เจะดุหมัน) | C22: (นายเสน่ห์ อ่อนเกตุพล) | E22: (นายสมบูรณ์ ขลุกเอียด)
B23: ผู้อำนวยการกองคลัง | C23: ปลัดองค์การบริหารส่วนตำบล | E23: นายกองค์การบริหารส่วนตำบลหัวไทร

Sheet ทะเบียน57
A1: งานทะเบียนทรัพย์สิน
A2: องค์การบริหารส่วนตำบลหัวไทร อำเภอหัวไทร จังหวัดนครศรีธรรมราช
A3: สิ้นงวดปีงบประมาณ พ.ศ. 2557
A4: ประเภท | C4: เลขที่ หรือ รหัส | D4: ยี่ห้อ แบบ ขนาดและลักษณะ | E4: วัน/เดือน/ปีที่ได้รับกรรมสิทธิ์ | F4: ราคาต่อหน่วย(บาท) | G4: ราคารวม(บาท) | H4: วิธีได้มาซึ่งกรรมสิทธ์ | I4: เลขที่เอกสาร | J4: ใช้ประจำที่ | K4: จำหน่าย | L4: เลขที่ เอกสาร | M4: หมายเหตุ
A7: 1) | B7: ครุภัณฑ์สำนักงาน
B8: โต๊ะทำงาน | C8: 400 40 0010-11 | D8: โต๊ะทำงานระดับ 1-2 | E8: 3 มี.ค 40 | F8: 1500 | G8: 3000 | H8: ตกลงราคา | I8: 56/2540 | J8: สำนักงาน
C9: 400 43 0014-15 | D9: โต๊ะทำงานระดับ 3-6พร้อมเก้าอี้ | E9: 6 ม.ค 43 | F9: 2700 | G9: =F9*2 -> 5400 | H9: ตกลงราคา | I9: 25/2543 | J9: สำนักปลัด
C10: 400 43 0016-17 | D10: โต๊ะคอมพ์พร้อมเก้าอี้ | E10: 19 พ.ค 43 | H10: สอบราคา | I10: 27/43 | M10: จำหน่าย
C11: 400 44 0018-19 | D11: โต๊ะทำงานระดับ 3-6 พร้อม | E11: 28 ม.ค 44 | F11: 2900 | G11: =F11*2 -> 5800 | H11: ตกลงราคา | I11: 36/059 | J11: ปลัด/คลัง
I12: 14/060 | J12: ส่วนการคลัง
C13: 400 45 0020 | D13: โต๊ะประชุมขนาด 12 คน | E13: 12 มิ.ย 45 | F13: 32000 | G13: 32000 | H13: ตกลงราคา | I13: 131/192 | J13: สนง.ปลัด
C14: 400 46 0021 | D14: โต๊ะเขียนแบบ ปรับระดับได้ | E14: 3 ม.ค 46 | F14: 4100 | H14: ตกลงราคา | I14: 15/63 | J14: ส่วนโยธา | K14: 640/2556 | M14: 400 46 0021
C15: 400 48 0022--32 | D15: โต๊ะทำงานระดับ 3-6พร้อมเก้าอี้ | E15: 18 เม.ย 48 | F15: 2600 | G15: 28600 | H15: ตกลงราคา | I15: 287-290/48 | J15: สนง.ปลัด
C16: 400 48 0033--38 | D16: โต๊ะทำงานระดับ 2 พร้อมเก้าอี้ | E16: 9 พ.ค 48 | F16: 1800 | G16: 10800 | H16: ตกลงราคา | I16: 357/48 | J16: สนง.ปลัด
C17: 400 49 0039-40 | D17: โต๊ะทำงานระดับ --2พร้อมเก้าอี้ | E17: 10 ก.พ 49 | F17: 1800 | G17: 3600 | H17: ตกลงราคา | I17: 277/49 | J17: สนง.ปลัด
C18: 400 49 0041-55 | D18: โต๊ะประชุม | E18: 31 ส.ค 49 | F18: 1000800 | G18: 32000 | H18: ตกลงราคา | I18: 900/49 | J18: สนง.ปลัด
A19: ประเภท | C19: เลขที่ หรือ รหัส | D19: ยี่ห้อ แบบ ขนาดและลักษณะ | E19: วัน/เดือน/ปีที่ได้รับกรรมสิทธิ์ | F19: ราคาต่อหน่วย(บาท) | G19: ราคารวม(บาท) | H19: วิธีได้มาซึ่งกรรมสิทธ์ | I19: เลขที่เอกสาร | J19: ใช้ประจำที่ | K19: จำหน่าย | L19: เลขที่ เอกสาร | M19: หมายเหตุ
C22: 400 51 0056-61 | D22: โต๊ะทำงานระดับ 3-6พร้อมเก้าอี้ | E22: 21 ม.ค 51 | F22: 3700 | G22: 22200 | H22: ตกลงราคา | I22: 245/51 | J22: สนง.ปลัด
C23: 400 51 0062 | D23: โต๊ะคอมพ์พร้อมเก้าอี้ | E23: 30 ก.ค 51 | F23: 3200 | G23: 3200 | H23: ตกลงราคา | I23: 960 | J23: สนง.ปลัด
C24: 400 53 0063-71 | D24: โต๊ะพร้อมเก้าอี้เด็กเล็กขนาด 6 ที่นั่ง( 1ชุด ประกอบด้วยโต๊ะ 1 ตัวและเก้าอี้1 ตัว) | E24: 30 มิ.ย 53 | F24: 5000 | G24: 40000 | H24: ตกลงราคา | I24: 978/52 | J24: ศพด.วัดหัวลำภูและศพดวัดทะเลปังแห่งละ 4 ชุด
C25: 400 57 0072-77 | D25: โต๊ะทำงานระดับ 3-6 จำนวน 6 ตัว | E25: 2 เม.ย 57 | F25: 5400 | G25: 32400 | H25: ตกลงราคา | I25: 381/57 | J25: สนง.ปลัด/กองช่าง/กองคลัง
B26: เก้าอี้ | C26: 401 57 001-10 | D26: เก้าอี้สำนักงานมีท้าวแขน | E26: 2 เม.ย 57 | F26: 1990 | G26: 19900 | H26: ตกลงราคา | I26: 381/57 | J26: สนง.ปลัด/กองช่าง/กองคลัง
B27: ตู้เก็บเอกสาร | C27: 406 38 0001 | D27: ตู้เหล็กชนิด 2 บาน สีเทา | E27: 8 ก.ย 38 | F27: 3300 | G27: 3300 | H27: ได้รับบริจาค | I27: 5/2538 | J27: สำนักงาน
C28: 406 39 0002 | D28: ตู้เหล็ก 15 ลิ้นชัก | E28: 5 ก.ย 39 | F28: 2300 | G28: 2300 | H28: ตกลงราคา | I28: 105/40 | J28: สำนักงาน
C29: 406 40 0003-4 | D29: ตู้เหล็กชนิด 2 บาน สีเทา | E29: 16 ก.ค 40 | F29: 2300 | G29: 4600 | H29: ได้รับบริจาค | I29: 106/2540 | J29: สำนักงาน
C30: 406 40 0005 | D30: ตู้เหล็ก 15 ลิ้นชัก | E30: 16 ก.ค 40 | F30: 2300 | G30: 2300 | H30: ตกลงราคา | I30: 107/2540 | J30: สำนักงาน
C31: 406 42 0006 | D31: ตู้เหล็กชนิด 2 บาน สีเทา | E31: 18 ม.ค 42 | F31: 3600 | G31: 3600 | H31: ตกลงราคา | I31: 27/42 | J31: สำนักงาน
C32: 406 43 0007 | D32: ตู้เหล็กชนิด 2 บาน สีเทา | E32: 6 ม.ค 43 | F32: 3300 | G32: 3300 | H32: ตกลงราคา | I32: 262/43 | J32: สำนักงาน
C33: 406 44 0008 | D33: ตู้เหล็กชนิด 2 บาน สีเทา | E33: 28 ม.ค 44 | F33: 3200 | G33: 3200 | H33: ตกลงราคา | I33: 36/059 | J33: สำนักงาน
C34: 406 44 0009 | D34: ตู้เหล็กชนิด 2 บาน สีเทา | E34: 25 มิ.ย 44 | F34: 2600 | G34: 2600 | H34: ตกลงราคา | I34: 29/159 | J34: ส่วนโยธา
C35: 406 44 0010-13 | D35: ตู้เหล็ก 15 ลิ้นชัก | E35: 25 มิ.ย 44 | F35: 2200 | G35: 8800 | H35: ตกลงราคา | I35: 10/160 29/159 | J35: สำนักงาน ส่วนโยธา
C36: 406 45 0014-16 | D36: ตู้เหล็กชนิด 2 บาน สีเทา | E36: 11 ก.ย 45 | F36: 3200 | G36: 9600 | H36: ตกลงราคา | I36: 182/274 50/275 | J36: สำนักงาน ส่วนการคลัง
C37: 406 52 0017-18 | D37: ตู้เหล็กชนิด 2 บาน สีเทา | E37: 23 ก.พ 52 | F37: 4800 | G37: 9600 | H37: ตกลงราคา | I37: 380/52 | J37: ศพด.หัวลำภู
C38: 406 52 19-20 | D38: ตู้เก็บเอกสาร 3 ประตูทำด้วยไม้ | E38: 30 มิ.ย 52 | F38: 5000 | G38: 10000 | H38: ตกลงราคา | I38: 978 | J38: ศพด.วัดหัวลำภูและศพดวัดทะเลปังแห่งละ 4 ชุด
A39: ประเภท | C39: เลขที่ หรือ รหัส | D39: ยี่ห้อ แบบ ขนาดและลักษณะ | E39: วัน/เดือน/ปีที่ได้รับกรรมสิทธิ์ | F39: ราคาต่อหน่วย(บาท) | G39: ราคารวม(บาท) | H39: วิธีได้มาซึ่งกรรมสิทธ์ | I39: เลขที่เอกสาร | J39: ใช้ประจำที่ | K39: จำหน่าย | L39: เลขที่ เอกสาร | M39: หมายเหตุ
C42: 406 54 21-23 | D42: ตู้เหล็กชนิด 2 บาน สีเทา | E42: 14 ก.ย 54 | F42: 5200 | G42: 15600 | H42: ตกลงราคา | I42: 1102/54 | J42: ส่วนการคลัง
C43: 406 57 24-27 | D43: ตู้เหล็กชนิด 2 บาน สีเทา มอก. | E43: 6 มี.ค 57 | F43: 8500 | G43: 34000 | H43: ตกลงราคา | I43: 266/57 | J43: กองคลัง
C44: 406 57 28-29 | D44: ตู้เหล็กชนิด 4 ลิ้นชัก สีเทา มอก. | E44: 6 มี.ค 57 | F44: 6000 | G44: 12000 | H44: ตกลงราคา | I44: 266/57 | J44: กองคลัง
B45: พัดลม | C45: 432 39 001-2 | D45: ชนิดยื่นยี่ห้อ NATIONAL | E45: 5 ก.ย 39 | F45: 1600 | G45: 3200 | H45: รับบริจาค | J45: สำนักงาน
B46: เครื่องพิมพ์ดีด | C46: 413 40 0001-2 | D46: ขนาดแคร่ 18 นิ้ว OLIVETTI 1 | E46: 3มี.ค 40 | F46: 8600 | G46: 17200 | H46: ตกลงราคา | I46: 105/40 | J46: สำนักงาน
B47: เครื่องอัดสำเนา | C47: 418 40 0001 | D47: ชนิดเติมหมึก " แอคโทรแฟ็กซ์" | E47: 3มี.ค 40 | F47: 26000 | G47: 26000 | H47: ตกลงราคา | I47: 57/40 | J47: สำนักงาน
C48: 417 54 0002 | D48: ยี่ห้อ เก็ตเตอร์เนอร์ | E48: 21 ก.พ 54 | F48: 88000 | G48: 88000 | H48: ตกลงราคา | I48: 00345/54 | J48: สนง.ปลัด
B49: ตู้นิรภัย | C49: 612 40 0001 | D49: ยี่ห้อ KINGKONG | E49: 16ก.ค 40 | F49: 11000 | G49: 11000 | H49: ตกลงราคา | I49: 108/40 | J49: ส่วนการคลัง
B50: ชุดรับแขก | C50: 403480001-2 | D50: ชุดรับแขก 4ที่นั่งเข้ามุม 1 ตัว | E50: 18 พ.ค 48 | F50: 8000 | G50: 16000 | H50: ตกลงราคา | I50: 407 | J50: สนง.ปลัด
B51: ชั้นวางเอกสาร | C51: 404480001 | D51: ชั้นวางเอกสารติดฝาพนัง | E51: 3 ส.ค 48 | F51: 160280.37 | G51: 160280.37 | H51: สอบราคา | I51: 619 | J51: สนง.ปลัด
B52: ชั้นวางเอกสาร | C52: 404 50 0002 | D52: ชั้นวางเอกสาร | E52: 4 เม.ย. 50 | F52: 11000 | G52: 11000 | H52: ตกลงราคา | I52: 523 | J52: สนง. ปลัด
C53: 404 50 0003 | D53: ชั้นวางเอกสารแบบ 2ชั้น | E53: 4 เม.ย. 50 | F53: 12000 | G53: 12000 | H53: ตกลงราคา | I53: 523 | J53: สนง. ปลัด
C54: 404 50 0004-7 | D54: ชั้นวางเอกสารแบบ 4 ชุด | E54: 4 เม.ย. 50 | F54: 13000 | G54: 52000 | H54: ตกลงราคา | I54: 511 | J54: ส่วนการคลัง
B55: ตู้ปิดประกาศ | C55: 479480001-3 | D55: ตู้ปิดประกาศพร้อมกุญแจ | E55: 9 มิ.ย 48 | F55: 7500 | G55: 22500 | H55: ตกลงราคา | I55: 458 | J55: สนง.ปลัด
B56: เครื่องปรับอากาศ | C56: 420 48 0001-4 | D56: ชนิดแขวน12000บีทียู | E56: 14 มิ.ย 48 | F56: 19700 | G56: 78800 | H56: สอบราคา | I56: 465 | J56: สนง.ปลัด
C57: 420 48 0005-8 | D57: ชนิดแขวน25000บีทียู | E57: 14 มิ.ย 48 | F57: 28050 | G57: 112200 | H57: สอบราคา | I57: 465 | J57: สนง.ปลัด
D58: ซ่อมบำรุงครุภัณฑ์ เครื่อง 006 | E58: 10 ม.ค 57 | F58: 13700 | G58: 13700 | H58: ตกลงราคา | I58: 236/55 | J58: กองคลัง
D59: ซ่อมบำรุงครุภํณฑ์ เครื่อง 008 | E59: 3 ก.พ 55 | F59: 14659 | G59: 14659 | H59: ตกลงราคา | I59: 236/55 | J59: ส่วนโยธา
C60: 420 49 0009 | D60: เครื่องปรับอากาศชนิด | E60: 28 ก.พ. 49 | F60: 32833 | G60: 98500 | H60: ตกลงราคา | I60: 344 | J60: สนง.ปลัด
C61: 420 49 0010 | D61: แขวน ยี่ห้อ NEC ขนาด | F61: 32833 | I61: 344
C62: 420 49 0011 | D62: 25,000 บีทียู | F62: 32834 | I62: 344
A63: ประเภท | C63: เลขที่ หรือ รหัส | D63: ยี่ห้อ แบบ ขนาดและลักษณะ | E63: วัน/เดือน/ปีที่ได้รับกรรมสิทธิ์ | F63: ราคาต่อหน่วย(บาท) | G63: ราคารวม(บาท) | H63: วิธีได้มาซึ่งกรรมสิทธ์ | I63: เลขที่เอกสาร | J63: ใช้ประจำที่ | K63: จำหน่าย | L63: เลขที่ เอกสาร | M63: หมายเหตุ
B66: ม่านปรับแสง | C66: 480 48 0001 | D66: ม่านปรับแสง 12 ช่อง | E66: 22 เม.ย 48 | F66: 25993 | G66: 25993 | H66: ตกลงราคา | I66: 303 | J66: สนง.ปลัด
B67: ตู้สาขาโทรศัพท์ | C67: 481 48 0001 | D67: ตู้สาขาโทรศัพท์พร้อมอุปกรณ์ | E67: 26 ส.ค 48 | F67: 32000 | G67: 32000 | H67: ตกลงราคา | I67: 684 | J67: สนง.ปลัด
B68: โต๊ะหมู่บูชา | C68: 477 49 0001 | D68: โต๊ะหมู่บูชาชุด 9 หมู่ | E68: 10 ก.พ. 49 | F68: 6800 | G68: 6800 | H68: ตกลงราคา | I68: 276
B69: เครื่องเจาะกระดาษ | C69: 470 53 0002 | D69: เครื่องเจาะรูกระดาษ | E69: 1 ก.ย 53 | F69: 5000 | G69: 5000 | H69: ตกลงราคา | I69: 1097/53 | J69: สนง.ปลัด
B70: เครื่องเจาะกระดาษ | C70: 470 52 0001 | D70: เครื่องเจาะกระดาษและ | E70: 23 ก.พ. 52 | F70: 16000 | G70: 16000 | H70: ตกลงราคา | I70: 379 | J70: สำนักปลัด
D71: เข้าเล่ม ยี่ห้อ Binco Come
D72: รุ่น Delta 2002
B73: โพเดียม | C73: 488 52 0001 - | D73: แท่นยืนบรรยาย(โพเดียม) | E73: 8 เม.ย. 52 | F73: 7500 | G73: 15000 | H73: ตกลงราคา | I73: 567 | J73: สำนักปลัด
C74: '0002 | D74: ทำด้วยไม้ จำนวน 2 ชุด
B75: ฉากกั้น | C75: 489 52 0001 | D75: ฉากกั้นสำนักงาน(ปาติชั่น) | E75: 8 เม.ย. 52 | F75: 10000 | G75: 10000 | H75: ตกลงราคา | I75: 567 | J75: ส่วนโยธา
D76: ทำด้วยไม้ จำนวน 1 ชุด
B77: เวทีห้องประชุม | C77: 490 52 0001 | D77: เวทีห้องประชุมโดยใช้ | E77: 8 เม.ย. 52 | F77: 34000 | G77: 34000 | H77: ตกลงราคา | I77: 567 | J77: ห้องประชุม
D78: โครงคร่าวไม้ยกระดับสูง | J78: อบต.หัวไทร
D79: จากพื้นเดิม 0.15 ม.ขนาด
D80: กว้าง 2 ม. ยาว 6.10ม. ชน
D81: ฝาผนังทั้ง 2 ด้านพร้อมปูพื้นไม้ปาเก้
A82: ประเภท | C82: เลขที่ หรือ รหัส | D82: ยี่ห้อ แบบ ขนาดและลักษณะ | E82: วัน/เดือน/ปีที่ได้รับกรรมสิทธิ์ | F82: ราคาต่อหน่วย(บาท) | G82: ราคารวม(บาท) | H82: วิธีได้มาซึ่งกรรมสิทธ์ | I82: เลขที่เอกสาร | J82: ใช้ประจำที่ | K82: จำหน่าย | L82: เลขที่ เอกสาร | M82: หมายเหตุ
A85: 2) | B85: ครุภัณฑ์ไฟฟ้าและวิทยุ | C85: ผ่าน
B86: ชุดไมโครโฟนสำหรับห้องประชุม | C86: 485 50 0001 -17 | D86: ชุดไมโครโฟนสำหรับ | E86: 19 ม.ค. 50 | F86: 75000 | G86: 75000 | H86: ตกลงราคา | I86: 189 | J86: สนง. ปลัด
D87: ห้องประชุม(17ชิ้น) 1 ชุด
D88: เงินรายได้
B89: ระบบเครื่องขยายเสียง | C89: 459 52 0001 | D89: (1) ระบบเครื่องขยายเสียง | E89: 16 มิ.ย. 52 | F89: 48900 | G89: 48900 | H89: ตกลงราคา | I89: 795 | J89: ห้องประชุม
D90: ห้องประชุม อบต. | J90: อบต.หัวไทร
D91: ประกอบด้วย | E91: 16 มิ.ย. 52 | F91: 4850*4 | H91: ตกลงราคา | I91: 795
D92: - ลำโพงขยายเสียงขนาด 18ล้อ
D93: (พร้อมอุปกรณ์ติดตั้ง) ยี่ห้อ
D94: NPEรุ่น V-ST 802 จำนวน 4 ตัว
D95: - เครื่องขยาย AC/DC 150 W | E95: 16 มิ.ย. 52 | F95: 15000 | H95: ตกลงราคา | I95: 795
D96: กำลัง 300 W ยี่ห้อ NPE รุ่น
D97: PDA 300 จำนวน 1 เครื่อง
D98: - เครื่องมิกเซอร์ ยี่ห้อ NTS | E98: 16 มิ.ย. 52 | F98: 9800 | H98: ตกลงราคา | I98: 795
D99: รุ่น STEREO MEXER M 12
D100: MICKLE จำนวน 1 เครื่อง
D101: - ขาไมค์ตั้งโต๊ะ รุ่น D-228A | E101: 16 มิ.ย. 52 | F101: 550*4 | H101: ตกลงราคา | I101: 795
D102: จำนวน 4 อัน
D103: - ขาโปรเจคเตอร์ รุ่น PJ-002 | E103: 16 มิ.ย. 52 | F103: 2500 | H103: ตกลงราคา | I103: 795
D104: จำนวน 1 อัน
D105: เงินอุดหนุนทั่วไป
A106: ประเภท | C106: เลขที่ หรือ รหัส | D106: ยี่ห้อ แบบ ขนาดและลักษณะ | E106: วัน/เดือน/ปีที่ได้รับกรรมสิทธิ์ | F106: ราคาต่อหน่วย(บาท) | G106: ราคารวม(บาท) | H106: วิธีได้มาซึ่งกรรมสิทธ์ | I106: เลขที่เอกสาร | J106: ใช้ประจำที่ | K106: จำหน่าย | L106: เลขที่ เอกสาร | M106: หมายเหตุ
B109: ระบบเครื่องขยายเสียงพร้อม | C109: 459 57 0002 | D109: ระบบเครื่องขยายเสียงพร้อม
B110: อุปกรณ์ต่อพ่วง จำนวน 1 ชุด | D110: อุปกรณ์ต่อพ่วง จำนวน 1 ชุด | E110: 3 ก.พ 57 | G110: 79000 | H110: ตกลงราคา | I110: 243/57 | J110: สนง.ปลัด
D111: ประกอบด้วย
D112: (1)เครื่องผสมสัญญานเสียง 1 ตัว | E112: 16000 | F112: 16000
D113: (2)ลำโพงแบบ 2 ทาง 8 โอห์ม 4 ตัว | E113: 4150 | F113: 16600
D114: (3)อีควอไลเซอร์ 1 ตัว | E114: 10800 | F114: 10800
D115: (4)ดครื่องขยายเสียง 3600 rms 1 ตัว | E115: 21000 | F115: 21000
D116: (5)ครอสโอเวอร์ 2/3/4 ทาง 1 ตัว | E116: 5900 | F116: 5900
D117: (6)คอมเพรสเสซอร์แบบ 2 channel1 ตัว | E117: 8700 | F117: 8700
B118: เครื่องรับส่งวิทยุพรัอม | D118: เครื่องรับส่งวิทยุพรัอม | E118: 24 ส.ค. 52 | G118: 94000 | H118: ตกลงราคา | I118: 1077
D119: อุปกรณ์ครบชุด (รวมค่าใบ
D120: อนุญาตใช้เครื่องและค่าติดตั้ง)
D121: ประกอบด้วย
B122: - เครื่องรับส่งวิทยุระบบYHF/FM | C122: 471 52 0001 | D122: - เครื่องรับส่งวิทยุระบบYHF/FM | E122: 24 ส.ค. 52 | F122: 32000 | H122: ตกลงราคา | I122: 1077 | J122: ที่ทำการ
D123: ชนิดประจำสถานีฐานกำลังส่ง | J123: อบต.
D124: 10 วัตต์ พร้อมอุปกรณ์ครบชุด
D125: จำนวน 1 เครื่อง และติดตั้ง
D126: เสาอากาศ 4 แร็ก
B127: - เครื่องรับส่งวิทยุระบบYHF/FM | C127: 471 52 0002 | D127: - เครื่องรับส่งวิทยุระบบYHF/FM | E127: 24 ส.ค. 52 | F127: 16500 | H127: ตกลงราคา | I127: 1077 | J127: รถยนต์อบต.
D128: ชนิดติดรถยนต์กำลังส่ง 10 วัตต์ | J128: กจ. 3543
D129: พร้อมอุปกรณ์ครบชุด จำนวน 1 เครื่อง | J129: น.ศ
A130: ประเภท | C130: เลขที่ หรือ รหัส | D130: ยี่ห้อ แบบ ขนาดและลักษณะ | E130: วัน/เดือน/ปีที่ได้รับกรรมสิทธิ์ | F130: ราคาต่อหน่วย(บาท) | G130: ราคารวม(บาท) | H130: วิธีได้มาซึ่งกรรมสิทธ์ | I130: เลขที่เอกสาร | J130: ใช้ประจำที่ | K130: จำหน่าย | L130: เลขที่ เอกสาร | M130: หมายเหตุ
B133: - เครื่องรับส่งวิทยุระบบYHF/FM | C133: 464 52 0001-7 | D133: - เครื่องรับส่งวิทยุระบบYHF/FM | E133: 24 ส.ค. 52 | F133: 6500*7 | H133: ตกลงราคา | I133: 1077 | J133: จนท.อปพร.
D134: ชนิดมือถือ กำลังส่ว 5 วัตต์
D135: พร้อมอุปกรณ์ครบชุด จำนวน
D136: 7 เครื่อง @ 6,500.- บาท
B137: เครื่องขยายเสียงแบบหูหิ้ว | C137: 493 55 0001 | D137: เครื่องขยายเสียงแบบหูหิ้ว | E137: 27 เม.ย 55 | F137: 3580 | G137: 3580 | H137: ตกลงราคา | I137: 423/55 | J137: สนง.ปลัด
D138: ยี่ห้อ suke รุ่น 599(มอก.1195-2536)
A139: 3) | B139: ครุภัณฑ์ยานพาหนะและขนส่ง
B140: รถจักรยานยนต์ | C140: 009 42 0001 | D140: NF 110 (WAVE) ขนาด HONDA ขกท757 | E140: 24 เม.ย 42 | F140: 39000 | G140: =F140*1 -> 39000 | H140: ตกลงราคา | I140: 79/2542 | J140: สำนักงาน
D141: ซ่อมบำรุงรถจักรยานยนต์ ขกท 757 | E141: 17 ธ.ค 56 | F141: 5800 | G141: 5800 | H141: ตกลงราคา | I141: 00134/57
C142: 009 46 0002 | D142: FDI110 สแช จูเนียร์ SUSUKI 495 | E142: 24 ก.ย 46 | F142: 33380 | G142: 33380 | H142: ตกลงราคา | I142: 39/289 | J142: ส่วนการคลัง
B143: รถบรรทุกน้ำ | D143: รถบรรทุกน้ำ ขนาด 10,000 | E143: 16 ส.ค. 48
D144: ลิตร มิตซูบิซิ รุ่น ฟูโร่ ป.5321 นศ
D145: ซ่อมรถบรรทุกน้ำ | E145: 29 ส.ค 56 | F145: 38740 | G145: 38740 | H145: ตกลงราคา | I145: 846/56 | J145: สำนักปลัด
B146: รถกู้ภัยเคลื่อนที่เร็ว | D146: รถกู้ภัยเคลื่อนที่เร็ว ยี่ห้อ อีซูซุ | E146: 16 ส.ค. 48
D147: รุ่น TFS 55 HPY บท9941 นศ
D148: ซ่อมรถกู้ภัยเคลื่อนที่เร็ว | E148: 12 มิ.ย 56 | F148: 9160 | G148: 9160 | H148: ตกลงราคา | I148: 613/56 | J148: สำนักปลัด
D149: ซ่อมบำรุงรถกู้ภัยเคลื่อนที่เร็ว 81-5128 | E149: 24 ธ.ค 56 | F149: 40810 | G149: 40810 | H149: ตกลงราคา | I149: 00143/57
A150: ประเภท | C150: เลขที่ หรือ รหัส | D150: ยี่ห้อ แบบ ขนาดและลักษณะ | E150: วัน/เดือน/ปีที่ได้รับกรรมสิทธิ์ | F150: ราคาต่อหน่วย(บาท) | G150: ราคารวม(บาท) | H150: วิธีได้มาซึ่งกรรมสิทธ์ | I150: เลขที่เอกสาร | J150: ใช้ประจำที่ | K150: จำหน่าย | L150: เลขที่ เอกสาร | M150: หมายเหตุ
B153: รถบรรทุกดีเซล | C153: 001 49 0001 | D153: รถบรรทุกดีเชล ขนาด 1 ตัน ก.จ | E153: 27 ธ.ค 49 | F153: 532000 | G153: 532000 | H153: สอบราคา | I153: 782 | J153: สนง.ปลัด
D154: .3543 ขับเคลื่อน 2 ล้อ แบบดับเบิ้ลแคบ ยี่ห้อ โตโยตา
D155: วีโก้ รุ่น 2.5 เจ สีบรอนซ์เงิน
B156: รถบรรทุกขยะ | C156: 005 53 0001 | D156: รถบรรทุกขยะชนิดเปิดข้างเทท้าย | E156: 14 พ.ย 52 | F156: 1586000 | G156: 1586000
D157: ขนาด 6 ล้อ 6 ตัน
D158: ซ่อมรถบรรทุกขยะ | E158: 23 ก.ค 56 | F158: 32000 | G158: 32000 | H158: ตกลงราคา | I158: 906/56 | J158: สำนักปลัด
D159: ทำบันไดข้างท้ายรถ | E159: 29 ก.ย 57 | F159: 6000 | G159: 6000 | H159: ตกลงราคา | I159: 00831/57
B160: รถบรรทุกแบบเปิดข้างเทท้ายติดตั้งเครนไฮครอลิคฯ | C160: 006 55 0001 | D160: รถบรรทุกแบบเปิดข้างเทท้ายติดตั้งเครนไฮครอลิคพร้อมกระเช้าไฟฟ้า | E160: 4 ก.ค 55 | F160: 2545000 | G160: 2545000 | H160: สอบราคา | I160: 00641/55 | J160: ส่วนโยธา
D161: ยี่ห้ออีซูซุ หมายเลขทะเบียนรถ 81-9201 นศ.
A162: 4) | B162: ครุภัณฑ์การเกษตร | C162: ผ่าน
B163: รถไถนา | C163: 602 42 0001-2 | D163: รถไถนาชนิดเดินตาม 8 แรงม้าET80 | E163: 13 ก.ย 42 | F163: 47000 | G163: =F163*2 -> 94000 | H163: สอบราคา | I163: 124/42 | J163: หมู่ที่ 2
B164: เครื่องพ่นหมอกควัน | C164: 054 45 0001 | D164: เครื่องพ่นหมอกควันยี่ห้อ IGบ้า รุ่น TF-35 | E164: 26 ก.ย 45 | F164: 50000 | G164: =F164*1 -> 50000 | H164: ตกลงราคา | I164: 84/84 | J164: หมู่ที่ 1-12
B165: เครื่องพ่นหมอกควัน | C165: 054 50 0002 | D165: เครื่องพ่นหมอกควัน | E165: 14 พ.ค 50 | F165: 61500 | G165: 61500 | H165: ตกลงราคา | I165: 654/50 | J165: สนง.ปลัด
B166: เครื่องตัดหญ้า | C166: 491 53 0001-2 | D166: เครื่องตัดหญ้า ยี่ห้อ HONDA | E166: 15 มิ.ย 53 | F166: 8500 | G166: 17000 | H166: บริจาค
A168: ประเภท | C168: เลขที่ หรือ รหัส | D168: ยี่ห้อ แบบ ขนาดและลักษณะ | E168: วัน/เดือน/ปีที่ได้รับกรรมสิทธิ์ | F168: ราคาต่อหน่วย(บาท) | G168: ราคารวม(บาท) | H168: วิธีได้มาซึ่งกรรมสิทธ์ | I168: เลขที่เอกสาร | J168: ใช้ประจำที่ | K168: จำหน่าย | L168: เลขที่ เอกสาร | M168: หมายเหตุ
A171: 5) | B171: ครุภัณฑ์คอมพิวเตอร์
B172: เครื่องคอมพิวเตอร์ | C172: 416 43 0001 | D172: PENTIUM III 600 MHg | E172: 19 พ.ค 43 | F172: 71500 | G172: =F172*1 -> 71500 | H172: สอบราคา | I172: 27/43 | J172: สำนักงาน
D173: Monitor 15” RAM 64 MB
D174: HDD 8.4 GB พร้อมอุปกรณ์ต่อพ่วง
D175: ซ่อมบำรุงครุภัณฑ์คอมฯ เครื่อง 0001 | E175: 27 มิ.ย 57 | F175: 14100 | G175: 14100 | H175: ตกลงราคา | I175: 00562/57
B176: เครื่องคอมพิวเตอร์ | C176: 416 45 0002 | D176: PENTIUM IV 2.0 GHz | E176: 17 ก.ค 45 | F176: 48950 | G176: =F176*1 -> 48950 | H176: ตกลงราคา | I176: 40/216 | J176: ส่วนการคลัง
D177: Monitor 17” RAM 256 MB
D178: HDD 40 GB พร้อมอุปกรณ์
B179: เครื่องคอมพิวเตอร์ | C179: 416 46 0003 | D179: เครื่องไมโครคอมพิวเตอร์ | E179: 18 ต.ค 45 | F179: 79500 | G179: =F179*1 -> 79500 | H179: - | I179: - | J179: สนง.ปลัด
D180: ยี่ห้อ Powell รุ่น Achilles
D181: P4160D พร้อมอุปกรณ์ดังนี้
D182: -Mouse
D183: -Keyboard
D184: -จอภาพ Powell 15 นิ้ว
D185: -Modem 56 Kbps
D186: -เครื่องพิมพ์แบบ Laser
D187: -เครื่องสำรองไฟฟ้า
D188: -เครื่องสแกนเนอร์,ลำโพง
C189: 416 46 0003 | D189: ซ่อมบำรุงคอมพิวเตอร์ | E189: 14 พ.ค 56 | F189: 14390 | G189: 14390 | H189: ตกลงราคา | I189: 535/56 | J189: สำนักปลัด
B190: เครื่องคอมพิวเตอร์ | C190: 416 46 0004 | D190: เครื่องไมโครคอมพิวเตอร์ | E190: 22 ก.ย 46 | F190: 80500 | G190: =F190*1 -> 80500 | H190: ตกลงราคา | I190: 40/290 | J190: สำนักงาน
D191: ยี่ห้อ Mac พร้อมอุปกรณ์ดังนี้
A192: ประเภท | C192: เลขที่ หรือ รหัส | D192: ยี่ห้อ แบบ ขนาดและลักษณะ | E192: วัน/เดือน/ปีที่ได้รับกรรมสิทธิ์ | F192: ราคาต่อหน่วย(บาท) | G192: ราคารวม(บาท) | H192: วิธีได้มาซึ่งกรรมสิทธ์ | I192: เลขที่เอกสาร | J192: ใช้ประจำที่ | K192: จำหน่าย | L192: เลขที่ เอกสาร | M192: หมายเหตุ
D195: -Mouse, keyboard
D196: -จอภาพ Powell 17 นิ้ว
D197: -เครื่องสำรองไฟฟ้า
D198: -เครื่องพิมพ์แบบ Laser
B199: เครื่องคอมพิวเตอร์ | C199: 416 48 0005 | D199: คอมพิวเตอร์ ACER SA 60 | E199: 22 ส.ค 48 | F199: 65000 | G199: 65000 | H199: สอบราคา | I199: 631 | J199: ส่วนโยธา
D200: พร้อมอุปกรณ์ต่อพ่วง
C201: 416 48 0006-8 | D201: คอมพิวเตอร์ ACER SA 60 | F201: 31666 | G201: 95000 | H201: สอบราคา | I201: 628 | J201: สนง.ปลัด
F202: 31666.66 | I202: 630 | J202: ส่วนการคลัง
F203: 31666.66 | I203: 629 | J203: สนง.ปลัด
B204: ครุภัณฑ์คอมพิวเตอร์ | C204: 416 50 0009 | D204: เครื่องคอมพิวเตอร์ | E204: 12 เม.ย. 50 | F204: 20700 | G204: =20700 -> 20700 | H204: สอบราคา | I204: 540 | J204: ส่วนการคลัง
B205: ครุภัณฑ์คอมพิวเตอร์ | C205: 416 51 0010 | D205: เครื่องคอมพิวเตอร์พร้อม | E205: 20 ก.พ 51 | F205: 38000 | G205: 38000 | H205: สอบราคา | I205: 540 | J205: สนง. ปลัด
D206: อุปกรณ์ต่อพ่วง 1 ชุด
D207: ซ่อมบำรุงครุภัณฑ์คอมฯ เครื่อง 0010 | E207: 27 มิ.ย 57 | F207: 13140 | G207: 13140 | H207: ตกลงราคา | I207: 00562/57
B208: ครุภัณฑ์คอมพิวเตอร์ | C208: 416 51 0011 | D208: เครื่องคอมพิวเตอร์พร้อม | E208: 30 ก.ค 51 | F208: 60000 | G208: 60000 | H208: สอบราคา | I208: 540/51 | J208: สนง. ปลัด
D209: อุปกรณ์ต่อพ่วง 1 ชุด
B210: ครุภัณฑ์คอมพิวเตอร์ | C210: 416 53 0012 | D210: เครื่องคอมพิวเตอร์พร้อม | E210: 22 ม.ค 53 | F210: 34000 | G210: 34000 | H210: ตกลงราคา | I210: 329/53 | J210: ส่วนการคลัง
D211: อุปกรณ์ต่อพ่วง 1 ชุด (เครื่องปริ้น)
B212: ครุภัณฑ์คอมพิวเตอร์ | C212: 416 56 0013-14 | D212: เครื่องคอมพิวเตอร์ชนิดตั้งโต๊ะยี่ห้อHP | E212: 22 มี.ค 2556 | F212: 26000 | G212: 52000 | H212: ตกลงราคา | I212: 423/56 | J212: ศพด.หัวลำภู
D213: รุ่น Pro 6300 | J213: ศพด.ทะเลปัง
A214: ประเภท | C214: เลขที่ หรือ รหัส | D214: ยี่ห้อ แบบ ขนาดและลักษณะ | E214: วัน/เดือน/ปีที่ได้รับกรรมสิทธิ์ | F214: ราคาต่อหน่วย(บาท) | G214: ราคารวม(บาท) | H214: วิธีได้มาซึ่งกรรมสิทธ์ | I214: เลขที่เอกสาร | J214: ใช้ประจำที่
K215: จำหน่าย | L215: เลขที่ เอกสาร | M215: หมายเหตุ
B217: ครุภัณฑ์คอมพิวเตอร์ | C217: 416 56 0015-17 | D217: เครื่องคอมพิวเตอร์ชนิดตั้งโต๊ะยี่ห้อHP | E217: 13 ส.ค 2556 | F217: 13500 | G217: 40500 | H217: สอบราคา | I217: 805-8/56 | J217: สนง.ปลัด 2
D218: รุ่น Pavillion 110-031l | J218: กองคลัง 1
B219: ครุภัณฑ์คอมพิวเตอร์ | C219: 416 56 0018 | D219: เครื่องคอมพิวเตอร์ชนิดตั้งโต๊ะยี่ห้อHP | E219: 13 ส.ค 2556 | F219: 20300 | G219: 20300 | H219: สอบราคา | I219: 809/56 | J219: กองช่าง
D220: รุ่น Pro 3330 MT
B222: ครุภัณฑ์คอมพิวเตอร์ | C222: 484 51 0003 | D222: เครื่องคอมพิวเตอร์ (notebock) | E222: 20 ก.พ 51 | F222: 45300 | G222: 45300 | H222: ตกลงราคา | I222: 858 | J222: ส่วนโยธา
C223: 484 56 0004-6 | D223: เครื่องคอมพิวเตอร์ (notebock)ยี่ห้อ Aser | E223: 13 ส.ค 2556 | F223: 15000 | G223: 45000 | H223: สอบราคา | I223: 805/56 | J223: สำนักปลัด
... 214 more rows

Sheet สะสม 8
F1: หมายเหตุ 8
A2: องค์การบริหารส่วนตำบลหัวไทร อำเภอหัวไทร จังหวัดนครศรีธรรมราช
A3: งบเงินสะสม
A4: ณ วันที่ 30 กันยายน 2557
F5: บาท
A6: เงินสะสม 1 ตุลาคม 2556 | F6: 14535979.25
A7: บวก | B7: รายรับจริงสูงกว่ารายจ่ายจริง | D7: 3357479.86
B8: รับเงินสะสมระหว่างปี | D8: 678753.06
A10: หัก | B10: จ่ายเงินสะสมระหว่างปี | D10: 1297407
B11: หัก 25% ของรายรับจริงสูงกว่ารายจ่ายจริง (เงินทุนสำรองเงินสะสม) | D11: 839369.97
F12: =D7+D8-D10-D11 -> 1899455.95
B13: เงินสะสม 30 กันยายน 2557 | F13: =F6+F12 -> 16435435.2
A16: หมายเหตุ
A17: เงินสะสม 30 กันยายน 2557 ประกอบด้วย
B18: 1. ลูกหนี้ค่าภาษี | F18: =12480+69255.72+400 -> 82135.72
B19: 2. เงินสะสมที่สามารถนำไปใช้ได้ | F19: =F13-F18 -> 16353299.48
F21: =SUM(F18:F20) -> 16435435.2
A27: (นางข้อหนัน เจะดุหมัน) | C27: (นายเสน่ห์ อ่อนเกตุพล) | D27: (นายสมบูรณ์ ขลุกเอียด)
A28: ผู้อำนวยการกองคลัง | C28: ปลัดองค์การบริหารส่วนตำบล | D28: นายกองค์การบริหารส่วนตำบลหัวไทร
A120: -4-
D121: ประมาณการ | E121: รายจ่ายจริง | F121: + | H121: สูง
F122: -
C123: เงินสะสม
A124: 1) | B124: ค่าขุดเจาะบ่อบาดาลบ้านโคกหลวง ม.6 | D124: 320000 | E124: 318000 | H124: =D124-E124 -> 2000
A125: 2) | B125: ขยายเขตไฟฟ้าสาธารณ ม.1 บ้านบางแค | D125: 132325.83 | E125: 132325.83 | H125: 0
A126: 3) | B126: ขยายเขตไฟฟ้าสาธารณ ม.10 บ้านหัวเสม็ด | D126: 60734.27 | E126: 60734.27 | H126: 0
A127: 4) | B127: ค่าซ่อมแซมถนนสายซอยนางนวล ม.6, 11 | D127: 369800 | E127: 368000 | H127: 1800
A128: 5) | B128: ค่าปรับปรุงถนนสายสระโพธิ์ - ท่าเสาร์ ม.4, 6 | D128: 641100 | E128: 429000 | H128: 212100
A129: 6) | B129: ค่าปรับปรุงถนนสายต้นตาล - บ้านโคกคุระ ม.5 | D129: 503600 | E129: 320000 | H129: 183600
A130: 7) | B130: ค่าปรับปรุงถนนสายเศรษฐกิจพอเพียง ม.2, 7 | D130: 602400 | E130: 470000 | H130: 132400
A131: 8) | B131: ค่าปรับปรุงถนนสายซอยเปรมประชา ม.1 | D131: 33000 | E131: 33000 | H131: 0
A132: 9) | B132: ค่าปรับปรุงถนนสายซอยคุณน้อง ม.9 | D132: 44000 | E132: 43500 | H132: 500
A133: 10) | B133: ค่าปรับปรุงถนนซอยนิคมพัฒนา ม.1 | D133: 40900 | E133: 40900 | H133: 0
A134: 11) | B134: ค่าปรับปรุงถนนซอยนางดับ หนูยิ้มซ้าย ม.1 | D134: 22600 | E134: 22600 | H134: 0
A135: 12) | B135: ค่าซ่อมแซมถนนสายบ้านท้อมแฉ้ ม.7 | D135: 104100 | E135: 104000 | H135: 100
A136: 13) | B136: ค่าปรับปรุงถนนสายฟื้นฟูเศรษฐกิจ ม.3 | D136: 657400 | E136: 655000 | H136: 2400
A137: 14) | B137: ค่าปรับปรุงถนนสายบ้านนายผล - ศูนย์ราชการใหม่ ม.12 | D137: 200600 | E137: 199000 | H137: 1600
A138: 15) | B138: ค่าปรับปรุงถนนสายบ้านหนำหยอม-โคกหลวง ม.6 | D138: 998200 | E138: 648000 | H138: 350200
A139: 16) | B139: ค่าบุกเบิกถนนสายจากถนน(หัวไทร-ตรงเตียง)-มาบขวางม.2 | D139: 115000 | E139: 0 | H139: 115000
A140: 17) | B140: ค่าขุดลอกเหมืองส่งน้ำสายไร่นาสวนผสม ม.4 | D140: 174800 | E140: 170000 | H140: 4800
A141: 18) | B141: เงินผลประโยชน์ตอบแทนอื่นเป็นกรณีพิเศษ | D141: 429804 | E141: 429804 | H141: 0
A142: รวมจ่ายขาดเงินสะสม | D142: =SUM(D124:D141) -> 5450364.1 | E142: =SUM(E124:E141) -> 4443864.1 | H142: 1006500
C143: เงินรายจ่ายค้างจ่าย
A144: 1) | B144: เงินส่งเสริมและพัฒนาองค์ความรู้ให้แก่บุคลากรอปท. | E144: 81950
A145: 2) | B145: ค่าอาหารเสริม(นม) สปช และศพด รวม 8 แห่ง | E145: 174482.15
A146: 3) | B146: ค่าอาหารกลางวันศพด.วัดหัวลำภู | E146: 22180
A147: 3) | B147: เงินส่งเสริมสนับสนุนกิจกรรมเด็กและครอบครัว | E147: 10000
A148: รวมรายจ่ายค้างจ่าย | E148: =SUM(E144:E147) -> 288612.15 | F148: -
C149: เงินอุดหนุนถ่ายโอนบุคลากร
A150: 1) | B150: ค่ารักษาพยาบาลลูกจ้างประจำสถานีสูบน้ำ | E150: 1316
A151: รวมรายจ่ายเงินอุดหนุนถ่ายโอนบุคลากร | E151: =SUM(E150:E150) -> 1316 | F151: -
C152: เงินอุดหนุนศูนย์ข้อมูลข่าวสาร อปท.
A153: 1 | B153: เงินอุดหนุนศูนย์ข้อมูลข่าวสาร อปท. อำเภอหัวไทร | E153: 35000
A154: รวมรายจ่ายเงินอุดหนุนศูนย์ข้อมูลข่าวสาร อปท. | E154: =SUM(E153:E153) -> 35000 | F154: -
A162: -5-
D163: ประมาณการ | E163: รายจ่ายจริง | F163: + | H163: สูง
F164: -
C165: เงินสำรองเงินรายรับ
A166: 1) | B166: ค่าติดตั้งไฟฟ้าสาธารณะบ้านท่อมแฉ้ จุดที่ 1 ม.7 50%หลัง | E166: =44553.2 -> 44553.2
A167: 2) | B167: ค่าติดตั้งไฟฟ้าสาธารณะบ้านลำคลอง จุดที่ 2 ม.7 50%หลัง | E167: 37261.15
A168: 3) | B168: ค่าติดตั้งไฟฟ้าสาธารณะบ้านคลองขุด จุดที่ 2 ม.11 50%หลัง | E168: 34342.19
A169: 4) | B169: ค่าติดตั้งไฟฟ้าสาธารณะบ้านพัฒนา จุดที่ 1 ม.11 50%หลัง | E169: 75701.43
A170: 5) | B170: ค่าติดตั้งไฟฟ้าสาธารณะบ้านหัวลำภูตก 1 ม.4 50%หลัง | E170: 42036.02
A171: 6) | B171: ค่าติดตั้งไฟฟ้าสาธารณะบ้านท่าช้างสาร ม.8 50% หลัง | E171: 79595.69
A172: 7) | B172: ค่าติดตั้งไฟฟ้าสาธารณะบ้านบางขอน ม.8 50% หลัง | E172: 36733.1
C173: รวมรายจ่ายเงินสำรองเงินรายรับ | E173: =SUM(E166:E172) -> 350222.78
A174: รวมรายจ่ายทั้งสิ้น | E174: =E100+E112+E142+E148+E151+E154+E173 -> 5119015.03 | F174: -

Sheet 8.1
H1: หมายเหตุ 8.1
A2: องค์การบริหารส่วนตำบลหัวไทร อำเภอหัวไทร จังหวัดนครศรีธรรมราช
A3: รายงานรายจ่ายที่ได้รับอนุมัติจากเงินสะสม
A4: ปีงบประมาณ พ.ศ 2557
A5: วันที่ได้รับอนุมัติ | B5: หมวด/ประเภท | C5: จำนวนเงินที่ได้นับอนุมัติ | D5: ก่อหนี้ผูกพัน | E5: เบิกจ่ายแล้ว | F5: คงเหลือเบิกจ่าย | G5: ยังไม่ได้ก่อหนี้ | H5: หมายเหตุ
C6: จ่ายขาด | F6: ปี 2558
A7: 9 ม.ค 57 | B7: เงินเดือน (ฝ่ายประจำ) | C7: 208138 | E7: 208138
A8: 8 ส.ค 57 | B8: ค่าจ้างลูกจ้างชั่วคราว | C8: 68705 | E8: 68705
A9: 8 ส.ค 57 | B9: เงินเดือน (ฝ่ายประจำ) | C9: 295064 | E9: 295064
A10: 5 มิ.ย 2557 | B10: ค่าที่ดินและสิ่งก่อสร้าง
B11: ประเภท รั้ว
B12: ค่าก่อสร้างรั้วศูนย์อบรมเด็กก่อนเกณฑ์ วัดทะเลปังม.1 | C12: 150000 | E12: 147500
B13: ประเภท ถนน
B14: ค่าปรับปรุงถนนซอยประชาร่วมใจ3 หมู่ที่ 2 | C14: 83000 | E14: 83000
B15: ค่าปรับปรุงถนนซอยลงทุ่ง หมู่ที่ 6 ตำบลหัวไทร | C15: 75000 | E15: 75000
B16: ค่าปรับปรุงถนนสายเศรษฐกิจพอเพียง ม.2,7 | C16: 1174000 | D16: 760000 | F16: 760000
B17: ค่าปรับปรุงถนนสายสระโพธิ์-ท่าเสาร์ ม4,6 | C17: 612000 | E17: 420000
B18: ค่าปรับปรุงถนนสายอิมอญ-อ่าวบ่อ ม. 11,12 | C18: 658000 | D18: 655000 | F18: 655000
B19: ค่าก่อสร้างถนน คสล. สายบ้านบางไร่-ศาลาแก้วม.8,5,3 | C19: 5768000 | F19: 5768000 | G19: 5768000
B20: ค่าก่อสร้างถนน คสล. สายบ้านเทพรักษา-หัวลำภู ม.4 | C20: 760000 | D20: 750000 | F20: 750000
B21: ค่าก่อสร้างถนน คสล. สายสันติราษฎร์(หนองบอนเก่า) ม.9 | C21: 407000 | D21: 295000 | F21: 295000
B22: รวม | C22: =SUM(C12:C21) -> 9687000 | D22: =SUM(D7:D21) -> 2460000 | E22: =SUM(E7:E21) -> 1297407 | F22: =SUM(F16:F21) -> 8228000 | G22: =SUM(G7:G21) -> 5768000
B25: (นางข้อหนัน เจะดุหมัน) | C25: (นายเสน่ห์ อ่อนเกตุพล) | F25: (นายสมบูรณ์ ขลุกเอียด)
B26: ผู้อำนวยการกองคลัง | C26: ปลัดองค์การบริหารส่วนตำบล | F26: นายกองค์การบริหารส่วนตำบลหัวไทร

Sheet ผลการดำเนินงานจากรายรับ
A1: งบแสดงผลการดำเนินงานจ่ายจากรายรับ
A2: องค์การบริหารส่วนตำบลหัวไทร
A3: ตั้งแต่วันที่ 1 ตุลาคม 2556 ถึงวันที่ 30 กันยายน 2557
A4: รายการ | C4: ประมาณการ | D4: เงินอุดหนุนระบุวัตถุประสงค์ | E4: รวม | F4: บริหารงานทั่วไป | G4: การรักษาความสงบ | H4: การศึกษา | I4: สาธารณสุข | J4: สังคมสงเคราะห์ | K4: เคหะและชุมชน | L4: สร้างความเข้มแข็งของชุมชน | M4: การศาสนาวัฒนธรรมและนันทนาการ | N4: การเกษตร | O4: การพาณิชย์ | P4: งบกลาง
A5: รายจ่าย
B6: งบกลาง | C6: 1842960 | E6: 1671243.28 | P6: 1671243.28
B7: งบกลาง | D7: 11505560 | P7: 11505560
B8: เงินเดือน(ฝ่ายการเมือง) | C8: 2917800 | E8: =SUM(F8:P8) -> 2916720 | F8: 2916720
B9: เงินเดือน(ฝ่ายประจำ) | C9: 3294274 | E9: 3261044 | F9: 2199224 | H9: 196890 | J9: 185780 | K9: 679150
B10: เงินเดือน(ฝ่ายประจำ) | D10: 360000 | H10: 360000
B11: ค่าจ้างประจำ | C11: 148000 | E11: 145800 | F11: 145800
B12: ค่าจ้างประจำ | D12: 147690 | N12: 147690
B13: ค่าจ้างชั่วคราว | C13: 597000 | E13: 546080 | F13: 425160 | H13: 9120 | K13: 111800
B14: ค่าจ้างชั่วคราว | D14: 216000 | H14: 216000
B15: ค่าตอบแทน | C15: 585579 | E15: 340771 | F15: 199731 | G15: 52200 | H15: 7980 | J15: 22600 | K15: 58260
B16: ค่าตอบแทน | D16: 2604 | N16: 2604
B17: ค่าใช้สอย | C17: 3770041 | E17: 3139693.65 | F17: =776259+6000+6000+7100 -> 795359 | G17: 52723 | H17: 634438 | I17: 1800 | J17: 75154 | K17: =568238.32+6000+7100+9220.39+77559.94+9000+6000+6000+6000 -> 695118.65 | L17: 228027 | M17: 640574 | N17: 16500
B18: ค่าใช้สอย | D18: 37500 | J18: 20000 | L18: 17500
B19: ค่าวัสดุ | C19: 2053110 | E19: 1833372.6 | F19: 427558 | G19: 65787 | H19: 958777.6 | I19: 24100 | K19: 357150
B20: ค่าวัสดุ | D20: 95200 | H20: 95200
B21: ค่าสาธารณูปโภค | C21: 417000 | E21: 382168.17 | F21: 292304.98 | N21: 89863.19
B22: เงินอุดหนุน | C22: 1799680 | E22: 1799680 | F22: 5000 | H22: 1629680 | I22: 150000 | M22: 15000
B23: รายจ่ายอื่น | C23: 2329656 | E23: 2329656 | F23: 2329656
B24: ค่าครุภัณฑ์ | C24: 369000 | E24: 319740 | F24: 277750 | G24: 7490 | K24: 34500
B25: ค่าที่ดินและสิ่งก่อสร้าง | C25: 7875900 | E25: 6513500 | F25: 0 | G25: =1650000 -> 1650000 | K25: =2761500 -> 2761500 | L25: 276000 | M25: 568000 | N25: 360500 | O25: =474500+423000 -> 897500
B26: รวมรายจ่าย | C26: =SUM(C5:C25) -> 28000000 | D26: =SUM(D5:D25) -> 12364554 | E26: =SUM(E6:E25) -> 25199468.7 | F26: =SUM(F6:F25) -> 10014262.98 | G26: 1828200 | H26: 4108085.6 | I26: 175900 | J26: 303534 | K26: 4697478.65 | L26: 521527 | M26: 1223574 | N26: 617157.19 | O26: 897500 | P26: 13176803.28
A29: รายรับ | E29: ประมาณการ | G29: รับจริง | I29: อุดหนุนระบุวัตถุประสงค์/เฉพาะกิจ
B30: ภาษีอากร | E30: 620000 | G30: 726962.53
B31: ค่าธรรมเนียมค่าปรับและใบอนุญาต | E31: 102000 | G31: 372053
B32: รายได้จากทรัพย์สิน | E32: 200000 | G32: 174245.72
B33: รายได้จากสาธารณูปโภค | E33: 126000 | G33: 175316
B34: รายได้เบ็ดเตล็ด | E34: 50000 | G34: 283642
B35: รายได้จากทุน
B36: รายได้ที่รัฐบาลจัดสรรให้ | E36: 18502000 | G36: 17575983.31
B37: เงินอุดหนุนทั่วไป | E37: 8400000 | G37: 9248746
B38: เงินอุดหนุนทั่วไปที่ระบุวัตถุประสงค์ | I38: 12364554
A39: รวมรายรับ | E39: =SUM(E30:E38) -> 28000000 | G39: =SUM(G30:G38) -> 28556948.56 | I39: =SUM(I38) -> 12364554
A40: รายรับสูง(ต่ำ)กว่ารายจ่าย | G40: =G39+I39-D26-E26 -> 3357479.86
C45: (นางข้อหนัน เจะดุหมัน) | G45: (นายเสน่ห์ อ่อนเกตุพล) | K45: (นายสมบูรณ์ ขลุกเอียด)
C46: ผู้อำนวยการกองคลัง | G46: ปลัดองค์การบริหารส่วนตำบล | K46: นายกองค์การบริหารส่วนตำบลหัวไทร
A51: .
P64: =SUM(E64:O64) -> 0
A91: 1
A92: องค์การบริหารส่วนตำบลหัวไทร
A93: งบแสดงผลการดำเนินงานจ่ายจากเงินรายรับ
A94: ตั้งแต่วันที่ 1 ตุลาคม 2552 ถึงวันที่ 30 กันยายน 2553
A95: รายการ | B95: ประมาณการ | C95: รวม | E95: บริหารงาน | F95: การรักษาความ | G95: การศึกษา | H95: สาธารณสุข | I95: สังคมสงเคราะห์ | J95: เคหะและขุมชน | K95: สร้างความเข้มแข็ง | L95: การศาสนาวัฒน- | N95: การเกษตร | O95: งบกลาง
E96: ทั่วไป | F96: สงบภายใน | K96: ของชุมชน | L96: ธรรมและนันทนาการ
A97: รายจ่าย
A98: เงินเดือน(ฝ่ายการเมือง) | B98: 4092840 | C98: =SUM(E98:O98) -> 1965840 | E98: 1965840 | F98: 0 | K98: 0 | L98: 0 | N98: 0 | O98: 0
A99: เงินเดือน(ฝ่ายประจำ) | C99: =SUM(E99:O99) -> 1964213 | E99: 1256195 | G99: 127120 | H99: 0 | I99: 135495 | J99: 445403
A100: ค่าจ้างประจำ | B100: =118000 -> 118000 | C100: 249600 | E100: 117480 | F100: 0 | G100: 0 | H100: 0 | I100: 0 | J100: 0 | K100: 0 | L100: 0 | N100: =132120 -> 132120 | O100: 0
A101: ค่าจ้างชั่วคราว | B101: 576800 | C101: 773107 | E101: 275760 | F101: 98400 | G101: =193490+204780+677 -> 398947 | H101: 0 | I101: 0 | J101: 0 | K101: 0 | L101: 0 | N101: 0 | O101: 0
A102: ค่าตอบแทน | B102: 1472000 | C102: 975113 | E102: =220812+166000+36000+200000 -> 622812 | F102: =30750+20000 -> 50750 | G102: =5400+30000+60000 -> 95400 | H102: 4630 | I102: =35390+30000 -> 65390 | J102: =29814+105000 -> 134814 | K102: 0 | L102: 0 | N102: =1317 -> 1317 | O102: 0
A103: ค่าใช้สอย | B103: 4043800 | C103: 2126040.72 | E103: =945557.19+858.04 -> 946415.23 | F103: 13700 | G103: 240632 | H103: 2100 | I103: 25920 | J103: =377014.75+81858.74 -> 458873.49 | K103: =24200+10000 -> 34200 | L103: 404200 | O103: 0
A104: ค่าวัสดุ | B104: 2199000 | C104: 3214107.15 | E104: =304946.15-5200 -> 299746.15 | F104: 71253 | G104: =1034085.8+5200+1515000 -> 2554285.8 | H104: 93900.2 | I104: 0 | J104: =194923-1 -> 194922 | K104: 0 | L104: 0 | N104: 0 | O104: 0
A105: ค่าสาธารณูปโภค | B105: 321000 | C105: 318286.15 | E105: 160114.87 | F105: 0 | G105: 0 | H105: 0 | I105: 0 | J105: 0 | K105: 0 | L105: 0 | N105: =60926.71+97244.57 -> 158171.28 | O105: 0
A106: เงินอุดหนุน | B106: 1746080 | C106: 1728580 | E106: 0 | F106: 0 | G106: 1262080 | H106: 120000 | I106: 0 | J106: 0 | K106: 74000 | L106: =175000+97500 -> 272500 | N106: 0 | O106: 0
A107: รายจ่ายอื่น | B107: 267250 | C107: 262250 | E107: 25000 | F107: 0 | G107: 237250 | H107: 0 | J107: 0 | L107: 0 | N107: 0 | O107: 0
A108: งบกลาง | B108: 3817230 | C108: 9601540 | E108: 0 | F108: 0 | G108: 0 | H108: 0 | I108: 0 | J108: 0 | K108: 0 | L108: 0 | N108: 0 | O108: =3260255.14+6341284.86 -> 9601540
A109: ค่าครุภัณฑ์ (หมายเหตุ 1) | B109: 53000 | C109: 52000 | E109: 52000 | H109: 0 | I109: 0 | J109: 0 | K109: 0 | L109: 0 | N109: 0 | O109: 0
A110: ค่าที่ดินและสิ่งก่อสร้าง (หมายเหตุ 2) | B110: 2293000 | C110: 4504000 | E110: 0 | F110: 0 | G110: 0 | H110: 0 | I110: 0 | J110: =1047000+3457000 -> 4504000 | K110: 0 | L110: 0 | N110: 0 | O110: 0
A111: รวมรายจ่าย | B111: =SUM(B97:B110) -> 21000000 | C111: 27734677.02 | E111: =SUM(E98:E110) -> 5721363.25 | F111: 234103 | G111: 4915714.8 | H111: 220630.2 | I111: 226805 | J111: 5738012.49 | K111: 108200 | L111: 676700 | N111: 291608.28 | O111: 9601540
A115: 2
A117: รายรับ
A118: ภาษีอากร | B118: 425000 | C118: 522687.48
A119: ค่าธรรมเนียมค่าปรับและใบอนุญาต | B119: 48000 | C119: 73283
A120: รายได้จากทรัพย์สิน | B120: 90000 | C120: 47313.74
A121: รายได้จากสาธารณูปโภค | B121: 0 | C121: 5686
A122: รายได้เบ็ดเตล็ด | B122: 291000 | C122: 174132.52
A123: รายได้จากทุน | B123: 0 | C123: 0
A124: รายได้ที่รัฐบาลจัดสรรให้ | B124: 10496000 | C124: 13810334.93
A125: เงินอุดหนุนทั่วไป | B125: 9650000 | C125: 7353115
A126: เงินอุดหนุนทั่วไป (ไม่ตั้งงบประมาณ) | C126: 125056.86
A127: เงินอุดหนุนเฉพาะกิจ | C127: 11634366.57
A128: รวมรายรับ | B128: =SUM(B118:B127) -> 21000000 | C128: =SUM(C118:C127) -> 33745976.1
A129: รายรับสูง(ต่ำ) กว่ารายจ่าย | C129: =SUM(C128-C111) -> 6011299.08
A133: (นางข้อหนัน เจะดุหมัน) (นายเสน่ห์ อ่อนเกตุพล) (นายสุทัศน์ พูลเสน)
A134: หัวหน้าส่วนการคลัง ปลัดองค์การบริหารส่วนตำบล นายกองค์การบริหารส่วนตำบลหัวไทร

Sheet รวม
A2: รายงานรายจ่ายในการดำเนินงานที่จ่ายจากเงินรายรับตามแผนงานรวม
A3: องค์การบริหารส่วนตำบลหัวไทร
A4: ตั้งแต่วันที่ 1 ตุลาคม 2556 ถึง วันที่ 30 กันยายน 2557
A5: รายการ | C5: ประมาณการ | D5: เงินอุดหนุนระบุวัตถุประสงค์ | E5: รวม | F5: บริหารงานทั่วไป | G5: การรักษาความสงบ | H5: การศึกษา | I5: สาธารณสุข | J5: สังคมสงเตราะห์ | K5: เคหะและชุมชน | L5: สร้างความเข้มแข็งของชุมชน | M5: การศาสนาวัฒนธรรมและนันทนาการ | N5: การเกษตร | O5: การพาณิชย์ | P5: งบกลาง
A6: รายจ่าย
B7: งบกลาง | C7: 1842960 | E7: =SUM(F7:P7) -> 1671243.28 | P7: 1671243.28 | Q7: =SUM(E7:P7) -> 3342486.56
B8: งบกลาง | D8: 11505560 | E8: =SUM(F8:P8) -> 11505560 | P8: 11505560
B9: เงินเดือน(ฝ่ายการเมือง) | C9: 2917800 | E9: 2916720 | F9: 2916720 | M9: ( | Q9: 2905894
B10: เงินเดือน(ฝ่ายประจำ) | C10: 3294274 | E10: 3261044 | F10: 2199224 | H10: 196890 | J10: 185780 | K10: 679150 | Q10: 360000
B11: เงินเดือน(ฝ่ายประจำ) | D11: 360000 | E11: 360000 | H11: 360000 | Q11: 285300
B12: ค่าจ้างประจำ | C12: 148000 | E12: 145800 | F12: 145800 | Q12: 496533
B13: ค่าจ้างประจำ | D13: 147690 | E13: 147690 | N13: 147690
B14: ค่าจ้างชั่วคราว | C14: 597000 | E14: 546080 | F14: 425160 | H14: 9120 | K14: 111800
B15: ค่าจ้างชั่วคราว | D15: 216000 | E15: 216000 | H15: 216000
B16: ค่าตอบแทน | C16: 585579 | E16: 340771 | F16: 199731 | G16: 52200 | H16: 7980 | J16: 22600 | K16: 58260
B17: ค่าตอบแทน | D17: 2604 | E17: 2604 | N17: 2604
B18: ค่าใช้สอย | C18: 3770041 | E18: 3139693.65 | F18: 795359 | G18: 52723 | H18: 634438 | I18: 1800 | J18: 75154 | K18: 695118.65 | L18: 228027 | M18: 640574 | N18: 16500 | Q18: 7537
B19: ค่าใช้สอย | D19: 37500 | E19: 37500 | J19: 20000 | L19: 17500
B20: ค่าวัสดุ | C20: 2053110 | E20: 1833372.6 | F20: 427558 | G20: 65787 | H20: 958777.6 | I20: 24100 | K20: 357150
B21: ค่าวัสดุ | D21: 95200 | E21: 95200 | H21: 95200
B22: ค่าสาธารณูปโภค | C22: 417000 | E22: 382168.17 | F22: 292304.98 | N22: 89863.19
B23: เงินอุดหนุน | C23: 1799680 | E23: 1799680 | F23: 5000 | H23: 1629680 | I23: 150000 | M23: 15000
B24: รายจ่ายอื่น | C24: 2329656 | E24: 1025710 | F24: 1025710
B25: ค่าครุภัณฑ์ | C25: 369000 | E25: 319740 | F25: 277750 | G25: 7490 | K25: 34500
B26: ค่าที่ดินและสิ่งก่อสร้าง | C26: 7875900 | E26: 4440500 | K26: 2761500 | L26: 276000 | M26: 568000 | N26: 360500 | O26: 474500
B27: รวมรายจ่าย | C27: =SUM(C6:C26) -> 28000000 | D27: =SUM(D6:D26) -> 12364554 | E27: 34187076.7 | F27: =SUM(F7:F26) -> 8710316.98 | G27: 178200 | H27: 4108085.6 | I27: 175900 | J27: 303534 | K27: 4697478.65 | L27: 521527 | M27: 1223574 | N27: 617157.19 | O27: 474500 | P27: 13176803.28
A30: (นางข้อหนัน เจะดุหมัน) | G30: (นายเสน่ห์ อ่อนเกตุพล) | L30: (นายสมบูรณ์ ขลุกเอียด)
A31: ผู้อำนวยการกองคลัง | G31: ปลัดองค์การบริหารส่วนตำบล | L31: นายกองค์การบริหารส่วนตำบลหัวไทร

Sheet ตามแผนงาน 1
A1: องค์การบริหารส่วนตำบลหัวไทร
A2: รายงานรายจ่ายในการดำเนินงานที่จ่ายจากเงินรายรับตามแผนงาน งานบริหารทั่วไป
A3: ตั้งแต่วันที่ 1 ตุลาคม 2556 ถึง 30 กันยายน 2557
A5: หมวด | C5: ประมาณการ | D5: รวม | E5: งานบริหารทั่วไป | F5: งานวางแผนสถิติ | G5: งานบริหารงานคลัง
F6: และวิชาการ
A7: รายจ่าย
B8: เงินเดือน (ฝ่ายการเมือง) | C8: 2917800 | D8: 2916720 | E8: 2916720
B9: เงินเดือน (ฝ่ายประจำ) | C9: 2232206 | D9: =SUM(E9:G9) -> 2199224 | E9: 1188800 | F9: 185760 | G9: 824664
B10: เงินเดือน (ฝ่ายประจำ) | D10: 0
B11: ค่าจ้างประจำ | C11: 148000 | D11: 145800 | E11: 145800
B12: ค่าจ้างชั่วคราว | C12: =170000+70000+175000+50000 -> 465000 | D12: 425160 | E12: 220800 | G12: 204360
B13: ค่าตอบแทน | C13: =585000+562929-999000-22350-15000+55000-5000+100000+20000 -> 281579 | D13: 199731 | E13: 96940 | F13: 25470 | G13: 77321
B14: ค่าใช้สอย | C14: 1050634 | D14: 795359 | E14: =500085+12000 -> 512085 | F14: 77790 | G14: =198384+7100 -> 205484
B15: ค่าวัสดุ | C15: =400000+15000-30000-26250+20000+100000 -> 478750 | D15: 427558 | E15: 317158 | F15: 18550 | G15: 91850
B16: ค่าสาธารณูปโภค | C16: =222000+90000+5000 -> 317000 | D16: 292304.98 | E16: 289482.98 | G16: 2822
B17: เงินอุดหนุน | C17: 5000 | D17: 5000 | E17: 5000
B18: รายจ่ายอื่น | C18: =30000+999000+1300656 -> 2329656 | D18: 1025710 | E18: 1025710
B19: งบกลาง | D19: 0
B20: ค่าครุภัณฑ์ | C20: 324000 | D20: 277750 | E20: 131300 | G20: 146450
B21: ค่าที่ดินและสิ่งก่อสร้าง | D21: 0
B22: รวม | C22: =SUM(C8:C21) -> 10549625 | D22: =SUM(D8:D21) -> 8710316.98 | E22: =SUM(E8:E21) -> 6849795.98 | F22: =SUM(F8:F21) -> 307570 | G22: =SUM(G8:G21) -> 1552951
B25: (นางข้อหนัน เจะดุหมัน) | D25: (นายเสน่ห์ อ่อนเกตพล) | F25: (นายสมบูรณ์ ขลุกเอียด)
B26: ผู้อำนวยการกองคลัง | D26: ปลัดองค์การบริหารส่วนตำบล | F26: นายกองค์การบริหารส่วนตำบลหัวไทร

Sheet ตามแผนงาน2
A1: องค์การบริหารส่วนตำบลหัวไทร
A2: รายงานรายจ่ายในการดำเนินงานที่จ่ายจากเงินรายรับตามแผนงาน การรักษาความสงบภายใน
A3: ตั้งแต่วันที่ 1 ตุลาคม 2556 ถึง 30 กันยายน 2557
A5: หมวด | C5: ประมาณการ | D5: รวม | E5: งานบริหารทั่วไปเกี่ยวกับ | F5: งานป้องกันภัยฝ่าย
E6: การรักษาความสงบภายใน | F6: พลเรือนและระงับอัคคีภัย
A7: รายจ่าย
B8: เงินเดือน (ฝ่ายการเมือง)
B9: เงินเดือน (ฝ่ายประจำ)
B10: ค่าจ้างประจำ
B11: ค่าจ้างชั่วคราว
B12: ค่าตอบแทน | C12: 60000 | D12: 52200 | F12: 52200
B13: ค่าใช้สอย | C13: =260000-20000-150000 -> 90000 | D13: =SUM(F13:F13) -> 52723 | F13: 52723
B14: ค่าวัสดุ | C14: 100000 | D14: 65787 | F14: 65787
B15: ค่าสาธารณูปโภค | D15: 0
B16: เงินอุดหนุน | D16: 0
B17: รายจ่ายอื่น | D17: 0
B18: งบกลาง | D18: 0
B19: ค่าครุภัณฑ์ | C19: 10000 | D19: 7490 | F19: 7490
B20: ค่าที่ดินและสิ่งก่อสร้าง | C20: 1650000
B21: รวม | C21: =SUM(C8:C20) -> 1910000 | D21: 178200 | E21: =SUM(E8:E20) -> 0 | F21: =SUM(F8:F20) -> 178200
B24: (นางข้อหนัน จะดุหมัน) | C24: (นายเสน่ห์ อ่อนเกตุพล) | E24: (นายสมบูรณ์ ขลุกเอียด)
B25: ผู้อำนวยการกองคลัง | C25: ปลัดองค์การบริหารส่วนตำบลหัวไทร | E25: นายกองค์การบริหารส่วนตำบลหัวไทร

Sheet ตามแผนงาน3
A1: องค์การบริหารส่วนตำบลหัวไทร
A2: รายงานรายจ่ายในการดำเนินงานที่จ่ายจากเงินรายรับตามแผนงาน การศึกษา
A3: ตั้งแต่วันที่ 1 ตุลาคม 2556 ถึง 30 กันยายน 2557
B5: หมวด | C5: ประมาณการ | D5: เงินอุดหนุนทั่วไป | E5: รวม | F5: งานบริหารทั่วไปเกี่ยวกับ | G5: งานระดับก่อนวัยเรียน | H5: งานศึกษา
D6: ที่ระบุวัตถุประสงค์ | F6: การศึกษา | G6: และประถมศึกษา | H6: ไม่กำหนดระดับ
A7: รายจ่าย
B8: เงินเดือน (ฝ่ายประจำ) | C8: =156000+35000+32720-26720 -> 197000 | E8: =SUM(F8:H8) -> 196890 | F8: 196890
B9: เงินเดือน (ฝ่ายประจำ) | D9: =330000+30000 -> 360000 | G9: =330000+30000 -> 360000
B10: ค่าจ้างประจำ | E10: =SUM(F10:H10) -> 0
B11: ค่าจ้างชั่วคราว | C11: 20000 | E11: =SUM(F11:H11) -> 9120 | G11: 9120
B12: ค่าจ้างชั่วคราว | D12: 216000 | G12: 216000
B13: ค่าตอบแทน | C13: =15000+10000 -> 25000 | E13: =SUM(F13:H13) -> 7980 | F13: 7980
B14: ค่าใช้สอย | C14: =35000+726600-50560 -> 711040 | E14: =SUM(F14:H14) -> 634438 | F14: 6950 | G14: 627488
B15: ค่าวัสดุ | C15: =10000+801360+200000 -> 1011360 | E15: 958777.6 | G15: 773877.6 | H15: 184900
B16: ค่าวัสดุ | D16: 95200 | G16: 95200
B17: ค่าสาธารณูปโภค | E17: =SUM(F17:H17) -> 0
B18: เงินอุดหนุน | C18: 1629680 | E18: =SUM(F18:H18) -> 1629680 | G18: 1629680
B19: รายจ่ายอื่น | E19: =SUM(F19:H19) -> 0
B20: งบกลาง | E20: =SUM(F20:H20) -> 0
B21: ค่าครุภัณฑ์ | E21: =SUM(F21:H21) -> 0
B22: ค่าที่ดินและสิ่งก่อสร้าง | C22: 1268000
B23: รวม | C23: =SUM(C8:C22) -> 4862080 | D23: 671200 | E23: 3436885.6 | F23: 211820 | G23: 3711365.6 | H23: 184900
C26: (นางข้อหนัน เจะดุหมัน) | E26: (นายเสน่ห์ อ่อนเกตพล) | G26: (นายสมบูรณ์ ขลุกเอียด)
C27: ผู้อำนวยการกองคลัง | E27: ปลัดองค์การบริหารส่วนตำบล | G27: นายกองค์การบริหารส่วนตำบลหัวไทร

Sheet ตามแผนงาน4
A1: องค์การบริหารส่วนตำบลหัวไทร
A2: รายงานรายจ่ายในการดำเนินงานที่จ่ายจากเงินรายรับตามแผนงาน สาธารณสุข
A3: ตั้งแต่วันที่ 1 ตุลาคม 2556 ถึง 30 กันยายน 2557
B5: หมวด | C5: ประมาณการ | D5: รวม | E5: งานบริหารทั่วไปเกี่ยวกับ | F5: งานโรงพยาบาล | G5: งานบริการสาธารณสุข
E6: การสาธารณสุข | G6: และงานสาธารณสุขอื่น
A7: รายจ่าย
B8: เงินเดือน (ฝ่ายการเมือง)
B9: เงินเดือน (ฝ่ายประจำ)
B10: ค่าจ้างประจำ
B11: ค่าจ้างชั่วคราว
B12: ค่าตอบแทน | C12: 15000 | D12: =E12+F12+G12 -> 0 | G12: 0
B13: ค่าใช้สอย | C13: 30000 | D13: 1800 | G13: 1800
B14: ค่าวัสดุ | C14: 40000 | D14: 24100 | G14: 24100
B15: ค่าสาธารณูปโภค
B16: เงินอุดหนุน | C16: 150000 | D16: 150000 | G16: 150000
B17: รายจ่ายอื่น | D17: 0
B18: งบกลาง | D18: 0
B19: ค่าครุภัณฑ์ | D19: 0
B20: ค่าที่ดินและสิ่งก่อสร้าง | D20: 0
B21: รวม | C21: =SUM(C8:C20) -> 235000 | D21: =E21+F21+G21 -> 175900 | G21: =SUM(G8:G20) -> 175900
B24: (นางข้อหนัน เจะดุหมัน) | D24: (นายเสน่ห์ อ่อนเกตพล) | F24: (นายสมบูรณ์ ขลุกเอียด)
B25: ผู้อำนวยการกองคลัง | D25: ปลัดองค์การบริหารส่วนตำบล | F25: นายกองค์การบริหารส่วนตำบลหัวไทร

Sheet ตามแผนงาน5
A1: องค์การบริหารส่วนตำบลหัวไทร
A2: รายงานรายจ่ายในการดำเนินงานที่จ่ายจากเงินรายรับตามแผนงาน สังคมสงเคราะห์
A3: ตั้งแต่วันที่ 1 ตุลาคม 2556 ถึง 30 กันยายน 2557
B5: หมวด | C5: ประมาณการ | D5: เงินอุดหนุนทั่วไป | E5: รวม | F5: งานบริหารทั่วไปเกี่ยวกับ | G5: งานสวัสดิการสังคมและ
D6: ที่ระบุวัตถุประสงค์ | F6: สังคมสงเคราะห์ | G6: สังคมสงเคราะห์
A7: รายจ่าย
B8: เงินเดือน (ฝ่ายการเมือง)
B9: เงินเดือน (ฝ่ายประจำ) | C9: 185790 | E9: =SUM(F9:G9) -> 185780 | F9: 185780
B10: ค่าจ้างประจำ | E10: =SUM(F10:G10) -> 0
B11: ค่าจ้างชั่วคราว | E11: 0
B12: ค่าตอบแทน | C12: =45000 -> 45000 | E12: 22600 | F12: 22600
B13: ค่าใช้สอย | C13: =10000+80000-10000 -> 80000 | E13: =SUM(F13:G13) -> 75154 | F13: 6154 | G13: 69000
B14: ค่าใช้สอย | D14: 20000 | G14: 20000
B15: ค่าวัสดุ | E15: 0
B16: ค่าสาธารณูปโภค | E16: 0
B17: เงินอุดหนุน | E17: 0
B18: รายจ่ายอื่น | E18: 0
B19: งบกลาง | E19: 0
B20: ค่าครุภัณฑ์ | E20: 0
B21: ค่าที่ดินและสิ่งก่อสร้าง | E21: 0
B22: รวม | C22: =SUM(C7:C21) -> 310790 | D22: =SUM(D9:D21) -> 20000 | E22: =SUM(E9:E21) -> 283534 | F22: =SUM(F8:F21) -> 214534 | G22: =SUM(G8:G21) -> 89000
B25: (นางข้อหนัน เจะดุหมัน) | D25: (นายเสน่ห์ อ่อนเกตพล) | F25: (นายสมบูรณ์ ขลุกเอียด)
B26: ผู้อำนวยการกองคลัง | D26: ปลัดองค์การบริหารส่วนตำบล | F26: นายกองค์การบริหารส่วนตำบลหัวไทร
A28: องค์การบริหารส่วนตำบลหัวไทร
A29: รายงานรายจ่ายในการดำเนินงานที่จ่ายจากเงินรายรับตามแผนงาน สังคมสงเคราะห์
A30: ตั้งแต่วันที่ 1 ตุลาคม 2556 ถึง 30 กันยายน 2557
B32: หมวด | C32: ประมาณการ | D32: เงินอุดหนุนทั่วไป | E32: รวม | F32: งานบริหารทั่วไปเกี่ยวกับ | G32: งานสวัสดิการสังคมและ
D33: ที่ระบุวัตถุประสงค์ | F33: สังคมสงเคราะห์ | G33: สังคมสงเคราะห์
A34: รายจ่าย
B35: เงินเดือน (ฝ่ายการเมือง)
B36: เงินเดือน (ฝ่ายประจำ) | C36: 185790 | E36: =SUM(F36:G36) -> 185780 | F36: 185780
B37: ค่าจ้างประจำ | E37: =SUM(F37:G37) -> 0
B38: ค่าจ้างชั่วคราว | E38: 0
B39: ค่าตอบแทน | C39: =45000 -> 45000 | E39: 22600 | F39: 22600
B40: ค่าใช้สอย | C40: 10000 | E40: =SUM(F40:G40) -> 6154 | F40: 6154
B41: ค่าใช้สอย
B42: ค่าวัสดุ | E42: =SUM(F42:G42) -> 0
B43: ค่าสาธารณูปโภค | E43: 0
B44: เงินอุดหนุน | E44: 0
B45: รายจ่ายอื่น | E45: 0
B46: งบกลาง | E46: 0
B47: ค่าครุภัณฑ์ | E47: 0
B48: ค่าที่ดินและสิ่งก่อสร้าง | E48: 0
B49: รวม | C49: =SUM(C34:C48) -> 240790 | D49: =SUM(D36:D48) -> 0 | E49: 214534 | F49: =SUM(F35:F48) -> 214534 | G49: =SUM(G35:G48) -> 0
A54: องค์การบริหารส่วนตำบลหัวไทร
A55: รายงานรายจ่ายในการดำเนินงานที่จ่ายจากเงินรายรับตามแผนงาน สังคมสงเคราะห์
A56: ตั้งแต่วันที่ 1 ตุลาคม 2556 ถึง 30 กันยายน 2557
B58: หมวด | C58: ประมาณการ | D58: เงินอุดหนุนทั่วไป | E58: รวม | F58: งานบริหารทั่วไปเกี่ยวกับ | G58: งานสวัสดิการสังคมและ
D59: ที่ระบุวัตถุประสงค์ | F59: สังคมสงเคราะห์ | G59: สังคมสงเคราะห์
A60: รายจ่าย
B61: เงินเดือน (ฝ่ายการเมือง)
B62: เงินเดือน (ฝ่ายประจำ)
B63: ค่าจ้างประจำ | E63: =SUM(F63:G63) -> 0
B64: ค่าจ้างชั่วคราว | E64: 0
B65: ค่าตอบแทน | C65: 10000
B66: ค่าใช้สอย | C66: 70000 | G66: 69000
B67: ค่าใช้สอย | D67: 20000 | G67: 20000
B68: ค่าวัสดุ | E68: =SUM(F68:G68) -> 0
B69: ค่าสาธารณูปโภค | E69: 0
B70: เงินอุดหนุน | E70: 0
B71: รายจ่ายอื่น | E71: 0
B72: งบกลาง | E72: 0
B73: ค่าครุภัณฑ์ | E73: 0
B74: ค่าที่ดินและสิ่งก่อสร้าง | E74: 0
B75: รวม | C75: =SUM(C60:C74) -> 80000 | D75: =SUM(D62:D74) -> 20000 | E75: 89000 | F75: =SUM(F61:F74) -> 0 | G75: =SUM(G61:G74) -> 89000

Sheet ตามแผนงาน6
A1: องค์การบริหารส่วนตำบลหัวไทร
A2: รายงานรายจ่ายในการดำเนินงานที่จ่ายจากเงินรายรับตามแผนงาน เคหะและชุมชน
A3: ตั้งแต่วันที่ 1 ตุลาคม 2556 ถึง 30 กันยายน 2557
A5: รายการ | B5: หมวด | C5: ประมาณการ | D5: รวม | E5: งานบริหารทั่วไป | F5: งานไฟฟ้าและถนน | G5: งานสวนสาธารณะ | H5: งานกำจัดขยะมูลฝอย
H6: และสิ่งปฏิกูล
A7: รายจ่าย
B8: เงินเดือน (ฝ่ายประจำ) | C8: 679278 | D8: =SUM(E8:H8) -> 679150 | E8: 679150
B9: ค่าจ้างประจำ | D9: =SUM(E9:H9) -> 0
B10: ค่าจ้างชั่วคราว | C10: 112000 | D10: 111800 | F10: 111800
B11: ค่าตอบแทน | C11: =120000+29000+5000+5000 -> 159000 | D11: 58260 | E11: 58260
B12: ค่าใช้สอย | C12: 785100 | D12: 695118.65 | E12: =82190+6000 -> 88190 | F12: =166120.32+7100+9220.39+77559.94 -> 260000.65 | H12: 346928
B13: ค่าวัสดุ | C13: =145000-80000+330000-20000-37000+85000 -> 423000 | D13: 357150 | E13: 31160 | F13: 272790 | H13: 53200
B14: ค่าสาธารณูปโภค | D14: 0
B15: เงินอุดหนุน | D15: 0
B16: รายจ่ายอื่น | D16: 0
B17: งบกลาง | D17: 0
B18: ค่าครุภัณฑ์ | C18: 35000 | D18: 34500 | E18: 34500
B19: ค่าที่ดินและสิ่งก่อสร้าง | C19: 2844900 | D19: 2761500 | F19: 2761500
B20: รวม | C20: =SUM(C8:C19) -> 5038278 | D20: =SUM(D8:D19) -> 4697478.65 | E20: =SUM(E8:E19) -> 891260 | F20: =SUM(F8:F19) -> 3406090.65 | H20: =SUM(H8:H19) -> 400128
C24: (นางข้อหนัน เจะดุหมัน) | E24: (นายเสน่ห์ อ่อนเกตพล) | G24: (นายสมบูรณ์ ขลุกเอียด)
C25: ผู้อำนวยการกองคลัง | E25: ปลัดองค์การบริหารส่วนตำบล | G25: นายกองค์การบริหารส่วนตำบลหัวไทร

Sheet ตามแผนงาน7
A1: องค์การบริหารส่วนตำบลหัวไทร
A2: รายงานรายจ่ายในการดำเนินงานที่จ่ายจากเงินรายรับตามแผนงาน สร้างความเข้มแข็งของชุมชน
A3: ตั้งแต่วันที่ 1 ตุลาคม 2556 ถึง 30 กันยายน 2557
A5: รายการ | C5: ประมาณการ | D5: เงินอุดหนุนทั่วไป | E5: รวม | F5: งานบริหารทั่วไป | G5: งานส่งเสริมและสนับสนุน
D6: ที่ระบุวัตถุประสงค์ | G6: ความเข้มแข็งชุมชน
A7: รายจ่าย
B8: เงินเดือน (ฝ่ายการเมือง) | E8: =F8+G8 -> 0
B9: เงินเดือน (ฝ่ายประจำ) | E9: =F9+G9 -> 0
B10: ค่าจ้างประจำ | E10: =F10+G10 -> 0
B11: ค่าจ้างชั่วคราว | E11: =F11+G11 -> 0
B12: ค่าตอบแทน
B13: ค่าใช้สอย | C13: =310000-30000-33233 -> 246767 | E13: 228027 | G13: 228027
B14: ค่าใช้สอย | D14: 17500 | G14: 17500
B15: ค่าวัสดุ | E15: =F15+G15 -> 0
B16: ค่าสาธารณูปโภค | E16: 0
B17: เงินอุดหนุน | E17: 0
B18: รายจ่ายอื่น | E18: 0
B19: งบกลาง | E19: 0
B20: ค่าครุภัณฑ์ | E20: 0
B21: ค่าที่ดินและสิ่งก่อสร้าง | C21: 279000 | E21: 276000 | G21: 276000
B22: รวม | C22: =SUM(C8:C21) -> 525767 | D22: =SUM(D8:D21) -> 17500 | E22: =SUM(E7:E21) -> 504027 | G22: =SUM(G8:G21) -> 521527
B25: (นางข้อหนัน เจะดุหมัน) | D25: (นายเสน่ห์ อ่อนเกตพล) | F25: (นายสมบูรณ์ ขลุกเอียด)
B26: ผู้อำนวยการกองคลัง | D26: ปลัดองค์การบริหารส่วนตำบล | F26: นายกองค์การบริหารส่วนตำบลหัวไทร

Sheet ตามแผนงาน8
A1: องค์การบริหารส่วนตำบลหัวไทร
A2: รายงานรายจ่ายในการดำเนินงานที่จ่ายจากเงินรายรับตามแผนงาน การศาสนาวัฒนธรรมและนันทนาการ
A3: ตั้งแต่วันที่ 1 ตุลาคม 2556 ถึง 30 กันยายน 2557
A4: รายการ | C4: ประมาณการ | D4: รวม | E4: งานกีฬาและนันทนาการ | F4: งานศาสนาวัฒนธรรม | G4: งานวิชาการวางแผนและ
F5: ท้องถิ่น | G5: ส่งเสริมการท่องเที่ยว
A6: รายจ่าย
B7: เงินเดือน (ฝ่ายการเมือง)
B8: เงินเดือน (ฝ่ายประจำ)
B9: ค่าจ้างประจำ
B10: ค่าจ้างชั่วคราว
B11: ค่าตอบแทน
B12: ค่าใช้สอย | C12: 740000 | D12: =E12+F12+G12 -> 640574 | E12: 494174 | F12: 146400
B13: ค่าวัสดุ | D13: =E13+F13+G13 -> 0
B14: ค่าสาธารณูปโภค | D14: 0
B15: เงินอุดหนุน | C15: 15000 | D15: 15000 | F15: 15000
B16: รายจ่ายอื่น | D16: 0
B17: งบกลาง | D17: 0
B18: ค่าครุภัณฑ์ | D18: 0
B19: ค่าที่ดินและสิ่งก่อสร้าง | C19: =569000 -> 569000 | D19: 568000 | E19: 568000
B20: รวม | C20: =SUM(C8:C19) -> 1324000 | D20: =SUM(D7:D19) -> 1223574 | E20: =SUM(E12:E19) -> 1062174 | F20: =SUM(F12:F19) -> 161400 | G20: =SUM(G15:G19) -> 0
B23: (นางข้อหนัน เจะดุหมัน) | D23: (นายเสน่ห์ อ่อนเกตพล) | F23: (นายสมบูรณ์ ขลุกเอียด)
B24: ผู้อำนวยการกองคลัง | D24: ปลัดองค์การบริหารส่วนตำบล | F24: นายกองค์การบริหารส่วนตำบลหัวไทร

Sheet ตามแผนงาน9
A1: องค์การบริหารส่วนตำบลหัวไทร
A2: รายงานรายจ่ายในการดำเนินงานที่จ่ายจากเงินรายรับตามแผนงาน การเกษตร
A3: ตั้งแต่วันที่ 1 ตุลาคม 2556 ถึง 30 กันยายน 2557
A5: รายการ | C5: ประมาณการ | D5: เงินอุดหนุนทั่วไป | E5: รวม | F5: งานส่งเสริมการเกษตร | G5: งานอนุรักษ์แหล่งน้ำ | H5: งานวิชาการวางแผนและ
D6: ที่ระบุวัตถุประสงค์ | G6: และป่าไม้ | H6: ส่งเสริมการท่องเที่ยว
A7: รายจ่าย
B8: ค่าจ้างประจำ | D8: 147690 | F8: 147690
B9: ค่าจ้างชั่วคราว | E9: =F9+G9+H9 -> 0
B10: ค่าตอบแทน | E10: 0
B11: ค่าตอบแทน | D11: 2604 | F11: 2604
B12: ค่าใช้สอย | C12: =200000-180000+50000-33500 -> 36500 | E12: =F12+G12+H12 -> 16500 | G12: 16500
B13: ค่าวัสดุ | E13: =F13+G13+H13 -> 0
B14: ค่าสาธารณูปโภค | C14: 100000 | E14: 89863.19 | F14: 89863.19
B15: ค่าสาธารณูปโภค
B16: เงินอุดหนุน | E16: 0
B17: งบกลาง | E17: 0
B18: ค่าครุภัณฑ์ | E18: 0
B19: ค่าที่ดินและสิ่งก่อสร้าง | C19: 362000 | E19: 360500 | F19: 360500
B20: รวม | C20: =SUM(C8:C19) -> 498500 | D20: =SUM(D8:D19) -> 150294 | E20: =SUM(E8:E19) -> 466863.19 | F20: =SUM(F8:F19) -> 600657.19 | G20: =SUM(G12:G19) -> 16500 | H20: =SUM(H16:H19) -> 0
B23: (นางข้อหนัน เจะดุหมัน) | D23: (นายเสน่ห์ อ่อนเกตพล) | G23: (นายสมบูรณ์ ขลุกเอียด)
B24: ผู้อำนวยการกองคลัง | D24: ปลัดองค์การบริหารส่วนตำบล | G24: นายกองค์การบริหารส่วนตำบลหัวไทร

Sheet ตามแผนงาน10
A1: องค์การบริหารส่วนตำบลหัวไทร
A2: รายงานรายจ่ายในการดำเนินงานที่จ่ายจากเงินรายรับตามแผนงาน การพาณิชย์
A3: ตั้งแต่วันที่ 1 ตุลาคม 2556 ถึง 30 กันยายน 2557
A5: หมวด | C5: ประมาณการ | D5: รวม | E5: งานกิจการประปา
A7: รายจ่าย
B8: เงินเดือน (ฝ่ายการเมือง)
B9: เงินเดือน (ฝ่ายประจำ)
B10: ค่าจ้างประจำ
B11: ค่าจ้างชั่วคราว
B12: ค่าตอบแทน
B13: ค่าใช้สอย
B14: ค่าวัสดุ
B15: ค่าสาธารณูปโภค
B16: เงินอุดหนุน
B17: รายจ่ายอื่น
B18: งบกลาง
B19: ค่าครุภัณฑ์
B20: ค่าที่ดินและสิ่งก่อสร้าง | C20: 903000 | D20: =SUM(E20:F20) -> 474500 | E20: 474500
B21: รวม | C21: =SUM(C9:C20) -> 903000 | D21: =SUM(E21:F21) -> 474500 | E21: =SUM(E20) -> 474500
A24: (นางข้อหนัน เจะดุหมัน) | C24: (นายเสน่ห์ อ่อนเกตพล) | E24: (นายสมบูรณ์ ขลุกเอียด)
A25: ผู้อำนวยการกองคลัง | C25: ปลัดองค์การบริหารส่วนตำบล | E25: นายกองค์การบริหารส่วนตำบลหัวไทร

Sheet ตามแผนงาน 11
A1: องค์การบริหารส่วนตำบลหัวไทร
A2: รายงานรายจ่ายในการดำเนินงานที่จ่ายจากเงินรายรับตามแผนงาน งบกลาง
A3: ตั้งแต่วันที่ 1 ตุลาคม 2556 ถึง 30 กันยายน 2557
B4: หมวด | C4: ประมาณการ | D4: เงินอุดหนุนทั่วไป | E4: รวม | F4: งบกลาง
D5: ที่ระบุวัตถุประสงค์
A6: รายจ่าย
B7: เงินเดือน (ฝ่ายการเมือง)
B8: เงินเดือน (ฝ่ายประจำ)
B9: ค่าจ้างประจำ
B10: ค่าจ้างชั่วคราว
B11: ค่าตอบแทน
B12: ค่าใช้สอย
B13: ค่าวัสดุ
B14: ค่าสาธารณูปโภค
B15: เงินอุดหนุน
B16: รายจ่ายอื่น
B17: งบกลาง | C17: 1842960 | E17: =F17 -> 1671243.28 | F17: 1671243.28
B18: งบกลาง | D18: 11505560 | F18: 11505560
B19: ค่าครุภัณฑ์
B20: ค่าที่ดินและสิ่งก่อสร้าง
B21: รวม | C21: =SUM(C8:C20) -> 1842960 | D21: =SUM(D7:D20) -> 11505560 | E21: =SUM(E7:E20) -> 1671243.28 | F21: =SUM(F7:F20) -> 13176803.28
B25: (นางข้อหนัน เจะดุหมัน) | D25: (นายเสน่ห์ อ่อนเกตพล) | F25: (นายสมบูรณ์ ขลุกเอียด)
B26: ผู้อำนวยการกองคลัง | D26: ปลัดองค์การบริหารส่วนตำบล | F26: นายกองค์การบริหารส่วนตำบลหัวไทร
B29: =10499625+1910000+4862080+235000+310790+4951997.65+525767+1324000+498500+1032500+1842960 -> 27993219.65 | C29: =10014262.98+1828500+4108085.6+175900+303534+2761500+521527+1223574+466863.19+897500+1671243.28 -> 23972490.05
E30: =10014262.98+1828500+3436885.6+175900+283534+4697478.65+504027+1223574+466863.19+897500+1671243.28 -> 25199768.7
B31: =10389625+1910000+4862080+235000+310790+5038278+525767+1324000+498500+903000+1842960 -> 27840000 | C31: =10014262.98+1828500+4108085.6+175900+303534+4696056.65+521527+1223574+466863.19+897500+1671243.28 -> 25907046.7
C33: =10014262.98+1828500+3436885.6+175900+283534+4697478.65+504027+1223574+450363.19+897500+1671243.28 -> 25183268.7 | D33: =25199468.7-25183268.7 -> 16200 | E33: =25199468.7-25049474.7 -> 149994
C35: =26885846.7-25199468.7 -> 1686378

Sheet ค่าที่ดิน
A1: หมายเหตุ ประกอบงบแสดงผลการดำเนินงาน
A2: องค์การบริหารส่วนตำบลหัวไทร อำเภอหัวไทร จังหวัดนครศรีธรรมราช
B4: หมายเหตุ 1 ค่าที่ดินและสิ่งก่อสร้าง จ่าย จากเงินอุดหนุนเฉพาะกิจ
C5: โครงการ…
H6: รวม | I6: =SUM(I5:I5) -> 0
C8: ค่าที่ดินและสิ่งก่อสร้าง จ่าย จากเงินรายรับ
C9: โครงการ | D9: ก่อสร้างถนนคอนกรีตเสริมเหล็กชุมชนบ้านอิมอญ ม.12 | I9: 238000
D10: ก่อสร้างถนนคอนกรีตเสริมเหล็กซอยบ้านนายจ้อน ม.1 | I10: 422000
D11: ก่อสร้างถนนคอนกรีตเสริมเหล็กสายแพรกเมือง-ในอ่าวบางขริม(ตอน2) | I11: 661000
D12: ปรับปรุงถนนซอยนางนวล ม.6 | I12: 335000
D13: ปรับปรุงถนนซอยสราญสุข ม.8 | I13: 248500
D14: ปรับปรุงถนนสายประชาอุทิศ ม.9 | I14: 334000
D15: ปรับปรุงถนนสายลำคลองออก ม.7 | I15: 523000
D16: ปรับปรุง/ต่อเติมศาลาเอนกประสงค์ประจำหมู่บ้าน ม.5 | I16: 276000
D17: ก่อสร้างลานกีฬา คสล. ชุมชนศาลาแก้ว ม.3 | I17: 568000
D18: ก่อสร้างท่อลอดเหลี่ยม คสล. ม10 | I18: 360500
D19: ก่อสร้างหอถังประปา หมู่ที่ 4 | I19: 474500
D20: ขุดเจาะบ่อบาดาล หมู่ที่ 11 | I20: 423000 | J20: รายจ่ายค้างจ่าย
D21: อาคารอปพร. | I21: 1650000 | J21: รายจ่ายค้างจ่าย
H26: รวม | I26: =SUM(I9:I25) -> 6513500
B27: หมายเหตุ 2
C28: รับเงินอุดหนุนเฉพาะกิจจาก
C29: กรมส่งเสริมการปกครองท้องถิ่น
C30: ...................................................................
H31: รวม | I31: =SUM(I29:I30) -> 0
B34: (นางข้อหนัน เจะดุหมัน) | E34: (นายเสน่ห์ อ่อนเกตุพล) | H34: (นายสมบูรณ์ ขลุกเอียด)
B35: ผู้อำนวยการกองคลัง | E35: ปลัดองค์การบริหารส่วนตำบล | H35: นายกองค์การบริหารส่วนตำบลหัวไทร

Sheet ผลการดำเนินงาน
A2: งบแสดงผลการดำเนินงานจ่ายจากเงินรายรับและเงินสะสม
A3: องค์การบริหารส่วนตำบลหัวไทร
A4: ตั้งแต่วันที่ 1 ตุลาคม 2556 ถึงวันที่ 30 กันยายน 2557
A5: หมวด | C5: ประมาณการ | D5: รวม | E5: บริหารงานทั่วไป | F5: การรักษาความสงบ | G5: การศึกษา | H5: สาธารณสุข | I5: สังคมสงเตราะห์ | J5: เคหะและชุมชน | K5: สร้างความเข้มแข็งของชุมชน | L5: การศาสนาวัฒนธรรมและนันทนาการ | M5: การเกษตร | N5: การพาณิชย์ | O5: งบกลาง
A6: รายจ่าย
B7: งบกลาง | C7: 1842960 | D7: 1671243.28 | O7: 1671243.28
B8: เงินเดือน(ฝ่ายการเมือง) | C8: 2917800 | D8: =SUM(E8:O8) -> 2916720 | E8: =2916720 -> 2916720
B9: เงินเดือน(ฝ่ายประจำ) | C9: 3294274 | D9: 3764246 | E9: 2702426 | G9: 196890 | I9: 185780 | J9: 679150
B10: ค่าจ้างประจำ | C10: 148000 | D10: =SUM(E10:O10) -> 145800 | E10: 145800
B11: ค่าจ้างชั่วคราว | C11: 597000 | D11: =SUM(E11:O11) -> 614785 | E11: =425160+68705 -> 493865 | G11: 9120 | J11: 111800
B12: ค่าตอบแทน | C12: 585579 | D12: =SUM(E12:O12) -> 340771 | E12: 199731 | F12: 52200 | G12: 7980 | I12: 22600 | J12: 58260
B13: ค่าใช้สอย | C13: 3770041 | D13: =SUM(E13:O13) -> 2993713.32 | E13: 776259 | F13: 52723 | G13: 634438 | H13: 1800 | I13: 75154 | J13: 568238.32 | K13: 228027 | L13: 640574 | M13: 16500
B14: ค่าวัสดุ | C14: 2053110 | D14: =SUM(E14:O14) -> 1833372.6 | E14: 427558 | F14: 65787 | G14: 958777.6 | H14: 24100 | J14: 357150
B15: ค่าสาธารณูปโภค | C15: 417000 | D15: =SUM(E15:O15) -> 382168.17 | E15: 292304.98 | M15: 89863.19
B16: เงินอุดหนุน | C16: 1799680 | D16: 1799680 | E16: 5000 | G16: 1629680 | H16: 150000 | L16: 15000
B17: รายจ่ายอื่น | C17: 2329656 | D17: 1025710 | E17: 1025710
B18: ค่าครุภัณฑ์ | C18: 369000 | D18: 319740 | E18: 277750 | F18: 7490 | J18: 34500
B19: ค่าที่ดินและสิ่งก่อสร้าง | C19: 7875900 | D19: 5166000 | E19: 0 | G19: 147500 | J19: =2761500+578000 -> 3339500 | K19: 276000 | L19: 568000 | M19: 360500 | N19: 474500
B20: รวมรายจ่าย | C20: =SUM(C6:C19) -> 28000000 | D20: 22973949.37 | E20: =SUM(E7:E19) -> 9263123.98 | F20: 178200 | G20: 3584385.6 | H20: 175900 | I20: 283534 | J20: 5148598.32 | K20: 504027 | L20: 1223574 | M20: 466863.19 | N20: 474500 | O20: 1671243.28
A23: รายรับ | F23: ประมาณการ | H23: รับจริง
B24: หมวดภาษีอากร | F24: 620000 | H24: 726962.53
B25: หมวดค่าธรรมาเนียม ค่าปรับ และใบอนุญาต | F25: 102000 | H25: 372053
B26: หมวดรายได้จากทรัพย์สิน | F26: 200000 | H26: 174245.72
B27: หมวดรายได้จาสาธารณูปโภคและการพาณิชย์ | F27: 126000 | H27: 175316
B28: หมวดรายได้เบ็ดเตล็ด | F28: 50000 | H28: 283642
B29: หมวดภาษีจัดสรร | F29: 18502000 | H29: 17575983.31
B30: หมวดเงินอุดหนุนทั่วไป | F30: 8400000 | H30: 9248746
B31: หมวดเงินอุดหนุนระบุวัตถุประสงค์/เฉพาะกิจ | H31: 12364554
A33: รวมรายรับ | F33: =SUM(F24:F31) -> 28000000 | H33: =SUM(H24:H32) -> 40921502.56
A34: รายรับสูง(ต่ำ)กว่ารายจ่าย | H34: =H33-D20 -> 17947553.19
C39: (นางข้อหนัน เจะดุหมัน) | F39: (นายเสน่ห์ อ่อนเกตุพล) | J39: (นายสมบูรณ์ ขลุกเอียด)
C40: ผู้อำนวยการกองคลัง | F40: ปลัดองค์การบริหารส่วนตำบล | J40: นายกองค์การบริหารส่วนตำบลหัวไทร

Sheet จ่ายจากเงินสะสม
A1: รายงานรายจ่ายในการดำเนินงานที่จ่ายจากเงินสะสม
A2: องค์การบริหารส่วนตำบลหัวไทร
A3: ตั้งแต่วันที่ 1 ตุลาคม 2556 ถึง 30 กันยายน 2557
A4: หมวด | B4: รวม | C4: แผนงานบริหารงานทั่วไป | D4: แผนงานการศึกษา | E4: แผนงานเคหะและชุมชน
C5: งานบริหารทั่วไป | D5: งาน ระดับก่อนวัยเรียนและประถมศึกษา | E5: งานไฟฟ้าและถนน
A6: รายจ่าย
A7: เงินเดือน(ฝ่ายการเมือง)
A8: เงินเดือน(ฝ่ายประจำ) | B8: =C8+D8+E8 -> 503202 | C8: =208138+295064 -> 503202
A9: ค่าจ้างประจำ | B9: =C9+D9+E9 -> 0
A10: ค่าจ้างชั่วคราว | B10: 68705 | C10: 68705
A11: ค่าตอบแทน | B11: 0
A12: ค่าใช้สอย | B12: 0
A13: ค่าวัสดุ | B13: 0
A14: ค่าสาธารณูปโภค | B14: 0
A15: เงินอุดหนุน | B15: 0
A16: รายจ่ายอื่น | B16: 0
A17: งบกลาง | B17: 0
A18: ค่าครุภัณฑ์ | B18: 0
A19: ค่าที่ดินและสิ่งก่อสร้าง | B19: 725500 | D19: 147500 | E19: 578000
A20: รวม | B20: 1297407 | C20: =SUM(C8:C19) -> 571907 | D20: =SUM(D6:D19) -> 147500 | E20: =SUM(E6:E19) -> 578000
A21: หมายเหตุ 1. จ่ายขาดเงินสะสม 1,297,407.- บาท
A22: 2 .ก่อหนี้ผูกพัน 2,460,000.- บาท
A24: (นางข้อหนัน เจะดุหมัน) | C24: (นายเสน่ห์ อ่อนเกตุพล) | D24: (นายสมบูรณ์ ขลุกเอียด)
A25: ผู้อำนวยการกองคลัง | C25: ปลัดองค์การบริหารส่วนตำบล | D25: นายกองค์การบริหารส่วนตำบลหัวไทร
A29: องค์การบริหารส่วนตำบลหัวไทร
A30: รายงานรายจ่ายในการดำเนินงานที่จ่ายจากเงินสะสม
A31: ตั้งแต่วันที่ 1 ตุลาคม 2555 ถึง 30 กันยายน 2555
A33: หมวด | B33: รวม | C33: แผนงานบริหารงานทั่วไป | D33: แผนงานเคหะและชุมชน | E33: แผนงานเคหะและชุมชน
C34: งานบริหารทั่วไป | D34: งานไฟฟ้าและถนน | E34: งานส่งเสริมการเกษตร
A35: รายจ่าย
A36: เงินเดือน(ฝ่ายการเมือง) | B36: =C36+D36+E36 -> 236040 | C36: 236040
A37: เงินเดือน(ฝ่ายประจำ) | B37: 326 | C37: 326
A38: ค่าจ้างประจำ | B38: 0
A39: ค่าจ้างชั่วคราว | B39: 0
A40: ค่าตอบแทน | B40: 0
A41: ค่าใช้สอย | B41: 200000 | E41: 200000
A42: ค่าวัสดุ | B42: 0
A43: ค่าสาธารณูปโภค | B43: 0
A44: เงินอุดหนุน | B44: 0
A45: รายจ่ายอื่น | B45: 0
A46: งบกลาง | B46: 0
A47: ค่าครุภัณฑ์ | B47: 2545000 | D47: 2545000
A48: ค่าที่ดินและสิ่งก่อสร้าง | B48: 3049000 | D48: 3009500 | E48: 39500
A49: รวม | B49: =C49+D49+E49 -> 6030366 | C49: =SUM(C36:C48) -> 236366 | D49: =SUM(D37:D48) -> 5554500 | E49: =SUM(E36:E48) -> 239500
A50: หมายเหตุ 1.จ่ายขาดเงินสะสม 6,030,366.- บาท
A51: 2.ก่อหนี้ผูกพัน 2,661,000.- บาท
A53: (นางข้อหนัน เจะดุหมัน) | C53: (นายเสน่ห์ อ่อนเกตุพล) | D53: (นายเสน่ห์ อ่อนเกตุพล)
A54: หัวหน้าส่วนการคลัง | C54: ปลัดองค์การบริหารส่วนตำบล | D54: ปลัดองค์การบริหารส่วนตำบลปฎิบัติหน้าที่
D55: นายกองค์การบริหารส่วนตำบลหัวไทร

Sheet รายงานความเข้ากันได้
B1: รายงานความเข้ากันได้สำหรับ ปิดงบ 55.xls
B2: ทำงานบน 8/27/2013 11:58
B4: คุณลักษณะต่อไปนี้ในสมุดงานนี้ไม่ได้รับการสนับสนุนโดย Excel รุ่นก่อนหน้า คุณลักษณะเหล่านี้อาจสูญหายหรือลดความสามารถลงเมื่อคุณบันทึกสมุดงานนี้ในรูปแบบแฟ้มรุ่นก่อนหน้านี้
B6: ความไม่เข้ากันที่ไม่ร้ายแรง | E6: จำนวนที่เกิดขึ้น
B8: มีบางเซลล์หรือลักษณะในสมุดงานนี้มีการจัดรูปแบบที่ไม่ได้รับการสนับสนุนโดยรูปแบบแฟ้มที่เลือก รูปแบบเหล่านี้จะถูกแปลงเป็นรูปแบบที่ใกล้เคียงที่สุดที่มีอยู่ | E8: 290

Sheet Sheet1
